Workbook

Sheet Leningcalculator
B1: Eenvoudige leningcalculator
B3: Leninggegevens | F3: Leningoverzicht
B4: Geleend bedrag | D4: € 10,000.00 | F4: Maandelijkse betaling | H4: =IFERROR(IF(LeningGoed,MaandelijkseBetaling,""), "") -> € 108.53
B5: Jaarlijks rentepercentage | D5: 5.50% | F5: Aantal betalingen | H5: =IFERROR(IF(LeningGoed,Leningjaren*12,""), "") -> 120
B6: Looptijd in jaren | D6: 10 | F6: Totale rente | H6: =IFERROR(IF(LeningGoed,TotaleLeningkosten-GeleendBedrag,""), "") -> € 3,023.15
B7: Begindatum van de lening | D7: =TODAY() -> 2019-05-08 | F7: Totale kosten van de lening | H7: =IFERROR(IF(LeningGoed,MaandelijkseBetaling*AantalBetalingen,""), "") -> € 13,023.15
B9: Bet.nr. | C9: Betalingsdatum | D9: Beginsaldo | E9: Betaling | F9: Hoofdsom | G9: Rente | H9: Eindsaldo
B10: =IFERROR(IF(LeningNietBetaald*LeningGoed,NummerBetaling,""), "") -> 1 | C10: =IFERROR(IF(LeningNietBetaald*LeningGoed,Betaaldatum,""), "") -> 2019-06-08 | D10: =IFERROR(IF(LeningNietBetaald*LeningGoed,WaardeLening,""), "") -> € 10,000.00 | E10: =IFERROR(IF(LeningNietBetaald*LeningGoed,MaandelijkseBetaling,""), "") -> € 108.53 | F10: =IFERROR(IF(LeningNietBetaald*LeningGoed,Hoofdsom,""), "") -> € 62.69 | G10: =IFERROR(IF(LeningNietBetaald*LeningGoed,Rentebedrag,""), "") -> € 45.83 | H10: =IFERROR(IF(LeningNietBetaald*LeningGoed,Eindsaldo,""), "") -> € 9,937.31
B11: =IFERROR(IF(LeningNietBetaald*LeningGoed,NummerBetaling,""), "") -> 2 | C11: =IFERROR(IF(LeningNietBetaald*LeningGoed,Betaaldatum,""), "") -> 2019-07-08 | D11: =IFERROR(IF(LeningNietBetaald*LeningGoed,WaardeLening,""), "") -> € 9,937.31 | E11: =IFERROR(IF(LeningNietBetaald*LeningGoed,MaandelijkseBetaling,""), "") -> € 108.53 | F11: =IFERROR(IF(LeningNietBetaald*LeningGoed,Hoofdsom,""), "") -> € 62.98 | G11: =IFERROR(IF(LeningNietBetaald*LeningGoed,Rentebedrag,""), "") -> € 45.55 | H11: =IFERROR(IF(LeningNietBetaald*LeningGoed,Eindsaldo,""), "") -> € 9,874.33
B12: =IFERROR(IF(LeningNietBetaald*LeningGoed,NummerBetaling,""), "") -> 3 | C12: =IFERROR(IF(LeningNietBetaald*LeningGoed,Betaaldatum,""), "") -> 2019-08-08 | D12: =IFERROR(IF(LeningNietBetaald*LeningGoed,WaardeLening,""), "") -> € 9,874.33 | E12: =IFERROR(IF(LeningNietBetaald*LeningGoed,MaandelijkseBetaling,""), "") -> € 108.53 | F12: =IFERROR(IF(LeningNietBetaald*LeningGoed,Hoofdsom,""), "") -> € 63.27 | G12: =IFERROR(IF(LeningNietBetaald*LeningGoed,Rentebedrag,""), "") -> € 45.26 | H12: =IFERROR(IF(LeningNietBetaald*LeningGoed,Eindsaldo,""), "") -> € 9,811.06
B13: =IFERROR(IF(LeningNietBetaald*LeningGoed,NummerBetaling,""), "") -> 4 | C13: =IFERROR(IF(LeningNietBetaald*LeningGoed,Betaaldatum,""), "") -> 2019-09-08 | D13: =IFERROR(IF(LeningNietBetaald*LeningGoed,WaardeLening,""), "") -> € 9,811.06 | E13: =IFERROR(IF(LeningNietBetaald*LeningGoed,MaandelijkseBetaling,""), "") -> € 108.53 | F13: =IFERROR(IF(LeningNietBetaald*LeningGoed,Hoofdsom,""), "") -> € 63.56 | G13: =IFERROR(IF(LeningNietBetaald*LeningGoed,Rentebedrag,""), "") -> € 44.97 | H13: =IFERROR(IF(LeningNietBetaald*LeningGoed,Eindsaldo,""), "") -> € 9,747.50
B14: =IFERROR(IF(LeningNietBetaald*LeningGoed,NummerBetaling,""), "") -> 5 | C14: =IFERROR(IF(LeningNietBetaald*LeningGoed,Betaaldatum,""), "") -> 2019-10-08 | D14: =IFERROR(IF(LeningNietBetaald*LeningGoed,WaardeLening,""), "") -> € 9,747.50 | E14: =IFERROR(IF(LeningNietBetaald*LeningGoed,MaandelijkseBetaling,""), "") -> € 108.53 | F14: =IFERROR(IF(LeningNietBetaald*LeningGoed,Hoofdsom,""), "") -> € 63.85 | G14: =IFERROR(IF(LeningNietBetaald*LeningGoed,Rentebedrag,""), "") -> € 44.68 | H14: =IFERROR(IF(LeningNietBetaald*LeningGoed,Eindsaldo,""), "") -> € 9,683.65
B15: =IFERROR(IF(LeningNietBetaald*LeningGoed,NummerBetaling,""), "") -> 6 | C15: =IFERROR(IF(LeningNietBetaald*LeningGoed,Betaaldatum,""), "") -> 2019-11-08 | D15: =IFERROR(IF(LeningNietBetaald*LeningGoed,WaardeLening,""), "") -> € 9,683.65 | E15: =IFERROR(IF(LeningNietBetaald*LeningGoed,MaandelijkseBetaling,""), "") -> € 108.53 | F15: =IFERROR(IF(LeningNietBetaald*LeningGoed,Hoofdsom,""), "") -> € 64.14 | G15: =IFERROR(IF(LeningNietBetaald*LeningGoed,Rentebedrag,""), "") -> € 44.38 | H15: =IFERROR(IF(LeningNietBetaald*LeningGoed,Eindsaldo,""), "") -> € 9,619.51
B16: =IFERROR(IF(LeningNietBetaald*LeningGoed,NummerBetaling,""), "") -> 7 | C16: =IFERROR(IF(LeningNietBetaald*LeningGoed,Betaaldatum,""), "") -> 2019-12-08 | D16: =IFERROR(IF(LeningNietBetaald*LeningGoed,WaardeLening,""), "") -> € 9,619.51 | E16: =IFERROR(IF(LeningNietBetaald*LeningGoed,MaandelijkseBetaling,""), "") -> € 108.53 | F16: =IFERROR(IF(LeningNietBetaald*LeningGoed,Hoofdsom,""), "") -> € 64.44 | G16: =IFERROR(IF(LeningNietBetaald*LeningGoed,Rentebedrag,""), "") -> € 44.09 | H16: =IFERROR(IF(LeningNietBetaald*LeningGoed,Eindsaldo,""), "") -> € 9,555.07
B17: =IFERROR(IF(LeningNietBetaald*LeningGoed,NummerBetaling,""), "") -> 8 | C17: =IFERROR(IF(LeningNietBetaald*LeningGoed,Betaaldatum,""), "") -> 2020-01-08 | D17: =IFERROR(IF(LeningNietBetaald*LeningGoed,WaardeLening,""), "") -> € 9,555.07 | E17: =IFERROR(IF(LeningNietBetaald*LeningGoed,MaandelijkseBetaling,""), "") -> € 108.53 | F17: =IFERROR(IF(LeningNietBetaald*LeningGoed,Hoofdsom,""), "") -> € 64.73 | G17: =IFERROR(IF(LeningNietBetaald*LeningGoed,Rentebedrag,""), "") -> € 43.79 | H17: =IFERROR(IF(LeningNietBetaald*LeningGoed,Eindsaldo,""), "") -> € 9,490.34
B18: =IFERROR(IF(LeningNietBetaald*LeningGoed,NummerBetaling,""), "") -> 9 | C18: =IFERROR(IF(LeningNietBetaald*LeningGoed,Betaaldatum,""), "") -> 2020-02-08 | D18: =IFERROR(IF(LeningNietBetaald*LeningGoed,WaardeLening,""), "") -> € 9,490.34 | E18: =IFERROR(IF(LeningNietBetaald*LeningGoed,MaandelijkseBetaling,""), "") -> € 108.53 | F18: =IFERROR(IF(LeningNietBetaald*LeningGoed,Hoofdsom,""), "") -> € 65.03 | G18: =IFERROR(IF(LeningNietBetaald*LeningGoed,Rentebedrag,""), "") -> € 43.50 | H18: =IFERROR(IF(LeningNietBetaald*LeningGoed,Eindsaldo,""), "") -> € 9,425.31
B19: =IFERROR(IF(LeningNietBetaald*LeningGoed,NummerBetaling,""), "") -> 10 | C19: =IFERROR(IF(LeningNietBetaald*LeningGoed,Betaaldatum,""), "") -> 2020-03-08 | D19: =IFERROR(IF(LeningNietBetaald*LeningGoed,WaardeLening,""), "") -> € 9,425.31 | E19: =IFERROR(IF(LeningNietBetaald*LeningGoed,MaandelijkseBetaling,""), "") -> € 108.53 | F19: =IFERROR(IF(LeningNietBetaald*LeningGoed,Hoofdsom,""), "") -> € 65.33 | G19: =IFERROR(IF(LeningNietBetaald*LeningGoed,Rentebedrag,""), "") -> € 43.20 | H19: =IFERROR(IF(LeningNietBetaald*LeningGoed,Eindsaldo,""), "") -> € 9,359.98
B20: =IFERROR(IF(LeningNietBetaald*LeningGoed,NummerBetaling,""), "") -> 11 | C20: =IFERROR(IF(LeningNietBetaald*LeningGoed,Betaaldatum,""), "") -> 2020-04-08 | D20: =IFERROR(IF(LeningNietBetaald*LeningGoed,WaardeLening,""), "") -> € 9,359.98 | E20: =IFERROR(IF(LeningNietBetaald*LeningGoed,MaandelijkseBetaling,""), "") -> € 108.53 | F20: =IFERROR(IF(LeningNietBetaald*LeningGoed,Hoofdsom,""), "") -> € 65.63 | G20: =IFERROR(IF(LeningNietBetaald*LeningGoed,Rentebedrag,""), "") -> € 42.90 | H20: =IFERROR(IF(LeningNietBetaald*LeningGoed,Eindsaldo,""), "") -> € 9,294.35
B21: =IFERROR(IF(LeningNietBetaald*LeningGoed,NummerBetaling,""), "") -> 12 | C21: =IFERROR(IF(LeningNietBetaald*LeningGoed,Betaaldatum,""), "") -> 2020-05-08 | D21: =IFERROR(IF(LeningNietBetaald*LeningGoed,WaardeLening,""), "") -> € 9,294.35 | E21: =IFERROR(IF(LeningNietBetaald*LeningGoed,MaandelijkseBetaling,""), "") -> € 108.53 | F21: =IFERROR(IF(LeningNietBetaald*LeningGoed,Hoofdsom,""), "") -> € 65.93 | G21: =IFERROR(IF(LeningNietBetaald*LeningGoed,Rentebedrag,""), "") -> € 42.60 | H21: =IFERROR(IF(LeningNietBetaald*LeningGoed,Eindsaldo,""), "") -> € 9,228.43
B22: =IFERROR(IF(LeningNietBetaald*LeningGoed,NummerBetaling,""), "") -> 13 | C22: =IFERROR(IF(LeningNietBetaald*LeningGoed,Betaaldatum,""), "") -> 2020-06-08 | D22: =IFERROR(IF(LeningNietBetaald*LeningGoed,WaardeLening,""), "") -> € 9,228.43 | E22: =IFERROR(IF(LeningNietBetaald*LeningGoed,MaandelijkseBetaling,""), "") -> € 108.53 | F22: =IFERROR(IF(LeningNietBetaald*LeningGoed,Hoofdsom,""), "") -> € 66.23 | G22: =IFERROR(IF(LeningNietBetaald*LeningGoed,Rentebedrag,""), "") -> € 42.30 | H22: =IFERROR(IF(LeningNietBetaald*LeningGoed,Eindsaldo,""), "") -> € 9,162.20
B23: =IFERROR(IF(LeningNietBetaald*LeningGoed,NummerBetaling,""), "") -> 14 | C23: =IFERROR(IF(LeningNietBetaald*LeningGoed,Betaaldatum,""), "") -> 2020-07-08 | D23: =IFERROR(IF(LeningNietBetaald*LeningGoed,WaardeLening,""), "") -> € 9,162.20 | E23: =IFERROR(IF(LeningNietBetaald*LeningGoed,MaandelijkseBetaling,""), "") -> € 108.53 | F23: =IFERROR(IF(LeningNietBetaald*LeningGoed,Hoofdsom,""), "") -> € 66.53 | G23: =IFERROR(IF(LeningNietBetaald*LeningGoed,Rentebedrag,""), "") -> € 41.99 | H23: =IFERROR(IF(LeningNietBetaald*LeningGoed,Eindsaldo,""), "") -> € 9,095.67
B24: =IFERROR(IF(LeningNietBetaald*LeningGoed,NummerBetaling,""), "") -> 15 | C24: =IFERROR(IF(LeningNietBetaald*LeningGoed,Betaaldatum,""), "") -> 2020-08-08 | D24: =IFERROR(IF(LeningNietBetaald*LeningGoed,WaardeLening,""), "") -> € 9,095.67 | E24: =IFERROR(IF(LeningNietBetaald*LeningGoed,MaandelijkseBetaling,""), "") -> € 108.53 | F24: =IFERROR(IF(LeningNietBetaald*LeningGoed,Hoofdsom,""), "") -> € 66.84 | G24: =IFERROR(IF(LeningNietBetaald*LeningGoed,Rentebedrag,""), "") -> € 41.69 | H24: =IFERROR(IF(LeningNietBetaald*LeningGoed,Eindsaldo,""), "") -> € 9,028.83
B25: =IFERROR(IF(LeningNietBetaald*LeningGoed,NummerBetaling,""), "") -> 16 | C25: =IFERROR(IF(LeningNietBetaald*LeningGoed,Betaaldatum,""), "") -> 2020-09-08 | D25: =IFERROR(IF(LeningNietBetaald*LeningGoed,WaardeLening,""), "") -> € 9,028.83 | E25: =IFERROR(IF(LeningNietBetaald*LeningGoed,MaandelijkseBetaling,""), "") -> € 108.53 | F25: =IFERROR(IF(LeningNietBetaald*LeningGoed,Hoofdsom,""), "") -> € 67.14 | G25: =IFERROR(IF(LeningNietBetaald*LeningGoed,Rentebedrag,""), "") -> € 41.38 | H25: =IFERROR(IF(LeningNietBetaald*LeningGoed,Eindsaldo,""), "") -> € 8,961.68
B26: =IFERROR(IF(LeningNietBetaald*LeningGoed,NummerBetaling,""), "") -> 17 | C26: =IFERROR(IF(LeningNietBetaald*LeningGoed,Betaaldatum,""), "") -> 2020-10-08 | D26: =IFERROR(IF(LeningNietBetaald*LeningGoed,WaardeLening,""), "") -> € 8,961.68 | E26: =IFERROR(IF(LeningNietBetaald*LeningGoed,MaandelijkseBetaling,""), "") -> € 108.53 | F26: =IFERROR(IF(LeningNietBetaald*LeningGoed,Hoofdsom,""), "") -> € 67.45 | G26: =IFERROR(IF(LeningNietBetaald*LeningGoed,Rentebedrag,""), "") -> € 41.07 | H26: =IFERROR(IF(LeningNietBetaald*LeningGoed,Eindsaldo,""), "") -> € 8,894.23
B27: =IFERROR(IF(LeningNietBetaald*LeningGoed,NummerBetaling,""), "") -> 18 | C27: =IFERROR(IF(LeningNietBetaald*LeningGoed,Betaaldatum,""), "") -> 2020-11-08 | D27: =IFERROR(IF(LeningNietBetaald*LeningGoed,WaardeLening,""), "") -> € 8,894.23 | E27: =IFERROR(IF(LeningNietBetaald*LeningGoed,MaandelijkseBetaling,""), "") -> € 108.53 | F27: =IFERROR(IF(LeningNietBetaald*LeningGoed,Hoofdsom,""), "") -> € 67.76 | G27: =IFERROR(IF(LeningNietBetaald*LeningGoed,Rentebedrag,""), "") -> € 40.77 | H27: =IFERROR(IF(LeningNietBetaald*LeningGoed,Eindsaldo,""), "") -> € 8,826.47
B28: =IFERROR(IF(LeningNietBetaald*LeningGoed,NummerBetaling,""), "") -> 19 | C28: =IFERROR(IF(LeningNietBetaald*LeningGoed,Betaaldatum,""), "") -> 2020-12-08 | D28: =IFERROR(IF(LeningNietBetaald*LeningGoed,WaardeLening,""), "") -> € 8,826.47 | E28: =IFERROR(IF(LeningNietBetaald*LeningGoed,MaandelijkseBetaling,""), "") -> € 108.53 | F28: =IFERROR(IF(LeningNietBetaald*LeningGoed,Hoofdsom,""), "") -> € 68.07 | G28: =IFERROR(IF(LeningNietBetaald*LeningGoed,Rentebedrag,""), "") -> € 40.45 | H28: =IFERROR(IF(LeningNietBetaald*LeningGoed,Eindsaldo,""), "") -> € 8,758.40
B29: =IFERROR(IF(LeningNietBetaald*LeningGoed,NummerBetaling,""), "") -> 20 | C29: =IFERROR(IF(LeningNietBetaald*LeningGoed,Betaaldatum,""), "") -> 2021-01-08 | D29: =IFERROR(IF(LeningNietBetaald*LeningGoed,WaardeLening,""), "") -> € 8,758.40 | E29: =IFERROR(IF(LeningNietBetaald*LeningGoed,MaandelijkseBetaling,""), "") -> € 108.53 | F29: =IFERROR(IF(LeningNietBetaald*LeningGoed,Hoofdsom,""), "") -> € 68.38 | G29: =IFERROR(IF(LeningNietBetaald*LeningGoed,Rentebedrag,""), "") -> € 40.14 | H29: =IFERROR(IF(LeningNietBetaald*LeningGoed,Eindsaldo,""), "") -> € 8,690.01
B30: =IFERROR(IF(LeningNietBetaald*LeningGoed,NummerBetaling,""), "") -> 21 | C30: =IFERROR(IF(LeningNietBetaald*LeningGoed,Betaaldatum,""), "") -> 2021-02-08 | D30: =IFERROR(IF(LeningNietBetaald*LeningGoed,WaardeLening,""), "") -> € 8,690.01 | E30: =IFERROR(IF(LeningNietBetaald*LeningGoed,MaandelijkseBetaling,""), "") -> € 108.53 | F30: =IFERROR(IF(LeningNietBetaald*LeningGoed,Hoofdsom,""), "") -> € 68.70 | G30: =IFERROR(IF(LeningNietBetaald*LeningGoed,Rentebedrag,""), "") -> € 39.83 | H30: =IFERROR(IF(LeningNietBetaald*LeningGoed,Eindsaldo,""), "") -> € 8,621.32
B31: =IFERROR(IF(LeningNietBetaald*LeningGoed,NummerBetaling,""), "") -> 22 | C31: =IFERROR(IF(LeningNietBetaald*LeningGoed,Betaaldatum,""), "") -> 2021-03-08 | D31: =IFERROR(IF(LeningNietBetaald*LeningGoed,WaardeLening,""), "") -> € 8,621.32 | E31: =IFERROR(IF(LeningNietBetaald*LeningGoed,MaandelijkseBetaling,""), "") -> € 108.53 | F31: =IFERROR(IF(LeningNietBetaald*LeningGoed,Hoofdsom,""), "") -> € 69.01 | G31: =IFERROR(IF(LeningNietBetaald*LeningGoed,Rentebedrag,""), "") -> € 39.51 | H31: =IFERROR(IF(LeningNietBetaald*LeningGoed,Eindsaldo,""), "") -> € 8,552.31
B32: =IFERROR(IF(LeningNietBetaald*LeningGoed,NummerBetaling,""), "") -> 23 | C32: =IFERROR(IF(LeningNietBetaald*LeningGoed,Betaaldatum,""), "") -> 2021-04-08 | D32: =IFERROR(IF(LeningNietBetaald*LeningGoed,WaardeLening,""), "") -> € 8,552.31 | E32: =IFERROR(IF(LeningNietBetaald*LeningGoed,MaandelijkseBetaling,""), "") -> € 108.53 | F32: =IFERROR(IF(LeningNietBetaald*LeningGoed,Hoofdsom,""), "") -> € 69.33 | G32: =IFERROR(IF(LeningNietBetaald*LeningGoed,Rentebedrag,""), "") -> € 39.20 | H32: =IFERROR(IF(LeningNietBetaald*LeningGoed,Eindsaldo,""), "") -> € 8,482.98
B33: =IFERROR(IF(LeningNietBetaald*LeningGoed,NummerBetaling,""), "") -> 24 | C33: =IFERROR(IF(LeningNietBetaald*LeningGoed,Betaaldatum,""), "") -> 2021-05-08 | D33: =IFERROR(IF(LeningNietBetaald*LeningGoed,WaardeLening,""), "") -> € 8,482.98 | E33: =IFERROR(IF(LeningNietBetaald*LeningGoed,MaandelijkseBetaling,""), "") -> € 108.53 | F33: =IFERROR(IF(LeningNietBetaald*LeningGoed,Hoofdsom,""), "") -> € 69.65 | G33: =IFERROR(IF(LeningNietBetaald*LeningGoed,Rentebedrag,""), "") -> € 38.88 | H33: =IFERROR(IF(LeningNietBetaald*LeningGoed,Eindsaldo,""), "") -> € 8,413.33
B34: =IFERROR(IF(LeningNietBetaald*LeningGoed,NummerBetaling,""), "") -> 25 | C34: =IFERROR(IF(LeningNietBetaald*LeningGoed,Betaaldatum,""), "") -> 2021-06-08 | D34: =IFERROR(IF(LeningNietBetaald*LeningGoed,WaardeLening,""), "") -> € 8,413.33 | E34: =IFERROR(IF(LeningNietBetaald*LeningGoed,MaandelijkseBetaling,""), "") -> € 108.53 | F34: =IFERROR(IF(LeningNietBetaald*LeningGoed,Hoofdsom,""), "") -> € 69.97 | G34: =IFERROR(IF(LeningNietBetaald*LeningGoed,Rentebedrag,""), "") -> € 38.56 | H34: =IFERROR(IF(LeningNietBetaald*LeningGoed,Eindsaldo,""), "") -> € 8,343.37
B35: =IFERROR(IF(LeningNietBetaald*LeningGoed,NummerBetaling,""), "") -> 26 | C35: =IFERROR(IF(LeningNietBetaald*LeningGoed,Betaaldatum,""), "") -> 2021-07-08 | D35: =IFERROR(IF(LeningNietBetaald*LeningGoed,WaardeLening,""), "") -> € 8,343.37 | E35: =IFERROR(IF(LeningNietBetaald*LeningGoed,MaandelijkseBetaling,""), "") -> € 108.53 | F35: =IFERROR(IF(LeningNietBetaald*LeningGoed,Hoofdsom,""), "") -> € 70.29 | G35: =IFERROR(IF(LeningNietBetaald*LeningGoed,Rentebedrag,""), "") -> € 38.24 | H35: =IFERROR(IF(LeningNietBetaald*LeningGoed,Eindsaldo,""), "") -> € 8,273.08
B36: =IFERROR(IF(LeningNietBetaald*LeningGoed,NummerBetaling,""), "") -> 27 | C36: =IFERROR(IF(LeningNietBetaald*LeningGoed,Betaaldatum,""), "") -> 2021-08-08 | D36: =IFERROR(IF(LeningNietBetaald*LeningGoed,WaardeLening,""), "") -> € 8,273.08 | E36: =IFERROR(IF(LeningNietBetaald*LeningGoed,MaandelijkseBetaling,""), "") -> € 108.53 | F36: =IFERROR(IF(LeningNietBetaald*LeningGoed,Hoofdsom,""), "") -> € 70.61 | G36: =IFERROR(IF(LeningNietBetaald*LeningGoed,Rentebedrag,""), "") -> € 37.92 | H36: =IFERROR(IF(LeningNietBetaald*LeningGoed,Eindsaldo,""), "") -> € 8,202.47
B37: =IFERROR(IF(LeningNietBetaald*LeningGoed,NummerBetaling,""), "") -> 28 | C37: =IFERROR(IF(LeningNietBetaald*LeningGoed,Betaaldatum,""), "") -> 2021-09-08 | D37: =IFERROR(IF(LeningNietBetaald*LeningGoed,WaardeLening,""), "") -> € 8,202.47 | E37: =IFERROR(IF(LeningNietBetaald*LeningGoed,MaandelijkseBetaling,""), "") -> € 108.53 | F37: =IFERROR(IF(LeningNietBetaald*LeningGoed,Hoofdsom,""), "") -> € 70.93 | G37: =IFERROR(IF(LeningNietBetaald*LeningGoed,Rentebedrag,""), "") -> € 37.59 | H37: =IFERROR(IF(LeningNietBetaald*LeningGoed,Eindsaldo,""), "") -> € 8,131.54
B38: =IFERROR(IF(LeningNietBetaald*LeningGoed,NummerBetaling,""), "") -> 29 | C38: =IFERROR(IF(LeningNietBetaald*LeningGoed,Betaaldatum,""), "") -> 2021-10-08 | D38: =IFERROR(IF(LeningNietBetaald*LeningGoed,WaardeLening,""), "") -> € 8,131.54 | E38: =IFERROR(IF(LeningNietBetaald*LeningGoed,MaandelijkseBetaling,""), "") -> € 108.53 | F38: =IFERROR(IF(LeningNietBetaald*LeningGoed,Hoofdsom,""), "") -> € 71.26 | G38: =IFERROR(IF(LeningNietBetaald*LeningGoed,Rentebedrag,""), "") -> € 37.27 | H38: =IFERROR(IF(LeningNietBetaald*LeningGoed,Eindsaldo,""), "") -> € 8,060.28
B39: =IFERROR(IF(LeningNietBetaald*LeningGoed,NummerBetaling,""), "") -> 30 | C39: =IFERROR(IF(LeningNietBetaald*LeningGoed,Betaaldatum,""), "") -> 2021-11-08 | D39: =IFERROR(IF(LeningNietBetaald*LeningGoed,WaardeLening,""), "") -> € 8,060.28 | E39: =IFERROR(IF(LeningNietBetaald*LeningGoed,MaandelijkseBetaling,""), "") -> € 108.53 | F39: =IFERROR(IF(LeningNietBetaald*LeningGoed,Hoofdsom,""), "") -> € 71.58 | G39: =IFERROR(IF(LeningNietBetaald*LeningGoed,Rentebedrag,""), "") -> € 36.94 | H39: =IFERROR(IF(LeningNietBetaald*LeningGoed,Eindsaldo,""), "") -> € 7,988.70
B40: =IFERROR(IF(LeningNietBetaald*LeningGoed,NummerBetaling,""), "") -> 31 | C40: =IFERROR(IF(LeningNietBetaald*LeningGoed,Betaaldatum,""), "") -> 2021-12-08 | D40: =IFERROR(IF(LeningNietBetaald*LeningGoed,WaardeLening,""), "") -> € 7,988.70 | E40: =IFERROR(IF(LeningNietBetaald*LeningGoed,MaandelijkseBetaling,""), "") -> € 108.53 | F40: =IFERROR(IF(LeningNietBetaald*LeningGoed,Hoofdsom,""), "") -> € 71.91 | G40: =IFERROR(IF(LeningNietBetaald*LeningGoed,Rentebedrag,""), "") -> € 36.61 | H40: =IFERROR(IF(LeningNietBetaald*LeningGoed,Eindsaldo,""), "") -> € 7,916.79
B41: =IFERROR(IF(LeningNietBetaald*LeningGoed,NummerBetaling,""), "") -> 32 | C41: =IFERROR(IF(LeningNietBetaald*LeningGoed,Betaaldatum,""), "") -> 2022-01-08 | D41: =IFERROR(IF(LeningNietBetaald*LeningGoed,WaardeLening,""), "") -> € 7,916.79 | E41: =IFERROR(IF(LeningNietBetaald*LeningGoed,MaandelijkseBetaling,""), "") -> € 108.53 | F41: =IFERROR(IF(LeningNietBetaald*LeningGoed,Hoofdsom,""), "") -> € 72.24 | G41: =IFERROR(IF(LeningNietBetaald*LeningGoed,Rentebedrag,""), "") -> € 36.29 | H41: =IFERROR(IF(LeningNietBetaald*LeningGoed,Eindsaldo,""), "") -> € 7,844.55
B42: =IFERROR(IF(LeningNietBetaald*LeningGoed,NummerBetaling,""), "") -> 33 | C42: =IFERROR(IF(LeningNietBetaald*LeningGoed,Betaaldatum,""), "") -> 2022-02-08 | D42: =IFERROR(IF(LeningNietBetaald*LeningGoed,WaardeLening,""), "") -> € 7,844.55 | E42: =IFERROR(IF(LeningNietBetaald*LeningGoed,MaandelijkseBetaling,""), "") -> € 108.53 | F42: =IFERROR(IF(LeningNietBetaald*LeningGoed,Hoofdsom,""), "") -> € 72.57 | G42: =IFERROR(IF(LeningNietBetaald*LeningGoed,Rentebedrag,""), "") -> € 35.95 | H42: =IFERROR(IF(LeningNietBetaald*LeningGoed,Eindsaldo,""), "") -> € 7,771.98
B43: =IFERROR(IF(LeningNietBetaald*LeningGoed,NummerBetaling,""), "") -> 34 | C43: =IFERROR(IF(LeningNietBetaald*LeningGoed,Betaaldatum,""), "") -> 2022-03-08 | D43: =IFERROR(IF(LeningNietBetaald*LeningGoed,WaardeLening,""), "") -> € 7,771.98 | E43: =IFERROR(IF(LeningNietBetaald*LeningGoed,MaandelijkseBetaling,""), "") -> € 108.53 | F43: =IFERROR(IF(LeningNietBetaald*LeningGoed,Hoofdsom,""), "") -> € 72.90 | G43: =IFERROR(IF(LeningNietBetaald*LeningGoed,Rentebedrag,""), "") -> € 35.62 | H43: =IFERROR(IF(LeningNietBetaald*LeningGoed,Eindsaldo,""), "") -> € 7,699.07
B44: =IFERROR(IF(LeningNietBetaald*LeningGoed,NummerBetaling,""), "") -> 35 | C44: =IFERROR(IF(LeningNietBetaald*LeningGoed,Betaaldatum,""), "") -> 2022-04-08 | D44: =IFERROR(IF(LeningNietBetaald*LeningGoed,WaardeLening,""), "") -> € 7,699.07 | E44: =IFERROR(IF(LeningNietBetaald*LeningGoed,MaandelijkseBetaling,""), "") -> € 108.53 | F44: =IFERROR(IF(LeningNietBetaald*LeningGoed,Hoofdsom,""), "") -> € 73.24 | G44: =IFERROR(IF(LeningNietBetaald*LeningGoed,Rentebedrag,""), "") -> € 35.29 | H44: =IFERROR(IF(LeningNietBetaald*LeningGoed,Eindsaldo,""), "") -> € 7,625.83
B45: =IFERROR(IF(LeningNietBetaald*LeningGoed,NummerBetaling,""), "") -> 36 | C45: =IFERROR(IF(LeningNietBetaald*LeningGoed,Betaaldatum,""), "") -> 2022-05-08 | D45: =IFERROR(IF(LeningNietBetaald*LeningGoed,WaardeLening,""), "") -> € 7,625.83 | E45: =IFERROR(IF(LeningNietBetaald*LeningGoed,MaandelijkseBetaling,""), "") -> € 108.53 | F45: =IFERROR(IF(LeningNietBetaald*LeningGoed,Hoofdsom,""), "") -> € 73.57 | G45: =IFERROR(IF(LeningNietBetaald*LeningGoed,Rentebedrag,""), "") -> € 34.95 | H45: =IFERROR(IF(LeningNietBetaald*LeningGoed,Eindsaldo,""), "") -> € 7,552.26
B46: =IFERROR(IF(LeningNietBetaald*LeningGoed,NummerBetaling,""), "") -> 37 | C46: =IFERROR(IF(LeningNietBetaald*LeningGoed,Betaaldatum,""), "") -> 2022-06-08 | D46: =IFERROR(IF(LeningNietBetaald*LeningGoed,WaardeLening,""), "") -> € 7,552.26 | E46: =IFERROR(IF(LeningNietBetaald*LeningGoed,MaandelijkseBetaling,""), "") -> € 108.53 | F46: =IFERROR(IF(LeningNietBetaald*LeningGoed,Hoofdsom,""), "") -> € 73.91 | G46: =IFERROR(IF(LeningNietBetaald*LeningGoed,Rentebedrag,""), "") -> € 34.61 | H46: =IFERROR(IF(LeningNietBetaald*LeningGoed,Eindsaldo,""), "") -> € 7,478.35
B47: =IFERROR(IF(LeningNietBetaald*LeningGoed,NummerBetaling,""), "") -> 38 | C47: =IFERROR(IF(LeningNietBetaald*LeningGoed,Betaaldatum,""), "") -> 2022-07-08 | D47: =IFERROR(IF(LeningNietBetaald*LeningGoed,WaardeLening,""), "") -> € 7,478.35 | E47: =IFERROR(IF(LeningNietBetaald*LeningGoed,MaandelijkseBetaling,""), "") -> € 108.53 | F47: =IFERROR(IF(LeningNietBetaald*LeningGoed,Hoofdsom,""), "") -> € 74.25 | G47: =IFERROR(IF(LeningNietBetaald*LeningGoed,Rentebedrag,""), "") -> € 34.28 | H47: =IFERROR(IF(LeningNietBetaald*LeningGoed,Eindsaldo,""), "") -> € 7,404.10
B48: =IFERROR(IF(LeningNietBetaald*LeningGoed,NummerBetaling,""), "") -> 39 | C48: =IFERROR(IF(LeningNietBetaald*LeningGoed,Betaaldatum,""), "") -> 2022-08-08 | D48: =IFERROR(IF(LeningNietBetaald*LeningGoed,WaardeLening,""), "") -> € 7,404.10 | E48: =IFERROR(IF(LeningNietBetaald*LeningGoed,MaandelijkseBetaling,""), "") -> € 108.53 | F48: =IFERROR(IF(LeningNietBetaald*LeningGoed,Hoofdsom,""), "") -> € 74.59 | G48: =IFERROR(IF(LeningNietBetaald*LeningGoed,Rentebedrag,""), "") -> € 33.94 | H48: =IFERROR(IF(LeningNietBetaald*LeningGoed,Eindsaldo,""), "") -> € 7,329.51
B49: =IFERROR(IF(LeningNietBetaald*LeningGoed,NummerBetaling,""), "") -> 40 | C49: =IFERROR(IF(LeningNietBetaald*LeningGoed,Betaaldatum,""), "") -> 2022-09-08 | D49: =IFERROR(IF(LeningNietBetaald*LeningGoed,WaardeLening,""), "") -> € 7,329.51 | E49: =IFERROR(IF(LeningNietBetaald*LeningGoed,MaandelijkseBetaling,""), "") -> € 108.53 | F49: =IFERROR(IF(LeningNietBetaald*LeningGoed,Hoofdsom,""), "") -> € 74.93 | G49: =IFERROR(IF(LeningNietBetaald*LeningGoed,Rentebedrag,""), "") -> € 33.59 | H49: =IFERROR(IF(LeningNietBetaald*LeningGoed,Eindsaldo,""), "") -> € 7,254.57
B50: =IFERROR(IF(LeningNietBetaald*LeningGoed,NummerBetaling,""), "") -> 41 | C50: =IFERROR(IF(LeningNietBetaald*LeningGoed,Betaaldatum,""), "") -> 2022-10-08 | D50: =IFERROR(IF(LeningNietBetaald*LeningGoed,WaardeLening,""), "") -> € 7,254.57 | E50: =IFERROR(IF(LeningNietBetaald*LeningGoed,MaandelijkseBetaling,""), "") -> € 108.53 | F50: =IFERROR(IF(LeningNietBetaald*LeningGoed,Hoofdsom,""), "") -> € 75.28 | G50: =IFERROR(IF(LeningNietBetaald*LeningGoed,Rentebedrag,""), "") -> € 33.25 | H50: =IFERROR(IF(LeningNietBetaald*LeningGoed,Eindsaldo,""), "") -> € 7,179.30
B51: =IFERROR(IF(LeningNietBetaald*LeningGoed,NummerBetaling,""), "") -> 42 | C51: =IFERROR(IF(LeningNietBetaald*LeningGoed,Betaaldatum,""), "") -> 2022-11-08 | D51: =IFERROR(IF(LeningNietBetaald*LeningGoed,WaardeLening,""), "") -> € 7,179.30 | E51: =IFERROR(IF(LeningNietBetaald*LeningGoed,MaandelijkseBetaling,""), "") -> € 108.53 | F51: =IFERROR(IF(LeningNietBetaald*LeningGoed,Hoofdsom,""), "") -> € 75.62 | G51: =IFERROR(IF(LeningNietBetaald*LeningGoed,Rentebedrag,""), "") -> € 32.91 | H51: =IFERROR(IF(LeningNietBetaald*LeningGoed,Eindsaldo,""), "") -> € 7,103.68
B52: =IFERROR(IF(LeningNietBetaald*LeningGoed,NummerBetaling,""), "") -> 43 | C52: =IFERROR(IF(LeningNietBetaald*LeningGoed,Betaaldatum,""), "") -> 2022-12-08 | D52: =IFERROR(IF(LeningNietBetaald*LeningGoed,WaardeLening,""), "") -> € 7,103.68 | E52: =IFERROR(IF(LeningNietBetaald*LeningGoed,MaandelijkseBetaling,""), "") -> € 108.53 | F52: =IFERROR(IF(LeningNietBetaald*LeningGoed,Hoofdsom,""), "") -> € 75.97 | G52: =IFERROR(IF(LeningNietBetaald*LeningGoed,Rentebedrag,""), "") -> € 32.56 | H52: =IFERROR(IF(LeningNietBetaald*LeningGoed,Eindsaldo,""), "") -> € 7,027.71
B53: =IFERROR(IF(LeningNietBetaald*LeningGoed,NummerBetaling,""), "") -> 44 | C53: =IFERROR(IF(LeningNietBetaald*LeningGoed,Betaaldatum,""), "") -> 2023-01-08 | D53: =IFERROR(IF(LeningNietBetaald*LeningGoed,WaardeLening,""), "") -> € 7,027.71 | E53: =IFERROR(IF(LeningNietBetaald*LeningGoed,MaandelijkseBetaling,""), "") -> € 108.53 | F53: =IFERROR(IF(LeningNietBetaald*LeningGoed,Hoofdsom,""), "") -> € 76.32 | G53: =IFERROR(IF(LeningNietBetaald*LeningGoed,Rentebedrag,""), "") -> € 32.21 | H53: =IFERROR(IF(LeningNietBetaald*LeningGoed,Eindsaldo,""), "") -> € 6,951.39
B54: =IFERROR(IF(LeningNietBetaald*LeningGoed,NummerBetaling,""), "") -> 45 | C54: =IFERROR(IF(LeningNietBetaald*LeningGoed,Betaaldatum,""), "") -> 2023-02-08 | D54: =IFERROR(IF(LeningNietBetaald*LeningGoed,WaardeLening,""), "") -> € 6,951.39 | E54: =IFERROR(IF(LeningNietBetaald*LeningGoed,MaandelijkseBetaling,""), "") -> € 108.53 | F54: =IFERROR(IF(LeningNietBetaald*LeningGoed,Hoofdsom,""), "") -> € 76.67 | G54: =IFERROR(IF(LeningNietBetaald*LeningGoed,Rentebedrag,""), "") -> € 31.86 | H54: =IFERROR(IF(LeningNietBetaald*LeningGoed,Eindsaldo,""), "") -> € 6,874.73
B55: =IFERROR(IF(LeningNietBetaald*LeningGoed,NummerBetaling,""), "") -> 46 | C55: =IFERROR(IF(LeningNietBetaald*LeningGoed,Betaaldatum,""), "") -> 2023-03-08 | D55: =IFERROR(IF(LeningNietBetaald*LeningGoed,WaardeLening,""), "") -> € 6,874.73 | E55: =IFERROR(IF(LeningNietBetaald*LeningGoed,MaandelijkseBetaling,""), "") -> € 108.53 | F55: =IFERROR(IF(LeningNietBetaald*LeningGoed,Hoofdsom,""), "") -> € 77.02 | G55: =IFERROR(IF(LeningNietBetaald*LeningGoed,Rentebedrag,""), "") -> € 31.51 | H55: =IFERROR(IF(LeningNietBetaald*LeningGoed,Eindsaldo,""), "") -> € 6,797.71
B56: =IFERROR(IF(LeningNietBetaald*LeningGoed,NummerBetaling,""), "") -> 47 | C56: =IFERROR(IF(LeningNietBetaald*LeningGoed,Betaaldatum,""), "") -> 2023-04-08 | D56: =IFERROR(IF(LeningNietBetaald*LeningGoed,WaardeLening,""), "") -> € 6,797.71 | E56: =IFERROR(IF(LeningNietBetaald*LeningGoed,MaandelijkseBetaling,""), "") -> € 108.53 | F56: =IFERROR(IF(LeningNietBetaald*LeningGoed,Hoofdsom,""), "") -> € 77.37 | G56: =IFERROR(IF(LeningNietBetaald*LeningGoed,Rentebedrag,""), "") -> € 31.16 | H56: =IFERROR(IF(LeningNietBetaald*LeningGoed,Eindsaldo,""), "") -> € 6,720.34
B57: =IFERROR(IF(LeningNietBetaald*LeningGoed,NummerBetaling,""), "") -> 48 | C57: =IFERROR(IF(LeningNietBetaald*LeningGoed,Betaaldatum,""), "") -> 2023-05-08 | D57: =IFERROR(IF(LeningNietBetaald*LeningGoed,WaardeLening,""), "") -> € 6,720.34 | E57: =IFERROR(IF(LeningNietBetaald*LeningGoed,MaandelijkseBetaling,""), "") -> € 108.53 | F57: =IFERROR(IF(LeningNietBetaald*LeningGoed,Hoofdsom,""), "") -> € 77.72 | G57: =IFERROR(IF(LeningNietBetaald*LeningGoed,Rentebedrag,""), "") -> € 30.80 | H57: =IFERROR(IF(LeningNietBetaald*LeningGoed,Eindsaldo,""), "") -> € 6,642.61
B58: =IFERROR(IF(LeningNietBetaald*LeningGoed,NummerBetaling,""), "") -> 49 | C58: =IFERROR(IF(LeningNietBetaald*LeningGoed,Betaaldatum,""), "") -> 2023-06-08 | D58: =IFERROR(IF(LeningNietBetaald*LeningGoed,WaardeLening,""), "") -> € 6,642.61 | E58: =IFERROR(IF(LeningNietBetaald*LeningGoed,MaandelijkseBetaling,""), "") -> € 108.53 | F58: =IFERROR(IF(LeningNietBetaald*LeningGoed,Hoofdsom,""), "") -> € 78.08 | G58: =IFERROR(IF(LeningNietBetaald*LeningGoed,Rentebedrag,""), "") -> € 30.45 | H58: =IFERROR(IF(LeningNietBetaald*LeningGoed,Eindsaldo,""), "") -> € 6,564.53
B59: =IFERROR(IF(LeningNietBetaald*LeningGoed,NummerBetaling,""), "") -> 50 | C59: =IFERROR(IF(LeningNietBetaald*LeningGoed,Betaaldatum,""), "") -> 2023-07-08 | D59: =IFERROR(IF(LeningNietBetaald*LeningGoed,WaardeLening,""), "") -> € 6,564.53 | E59: =IFERROR(IF(LeningNietBetaald*LeningGoed,MaandelijkseBetaling,""), "") -> € 108.53 | F59: =IFERROR(IF(LeningNietBetaald*LeningGoed,Hoofdsom,""), "") -> € 78.44 | G59: =IFERROR(IF(LeningNietBetaald*LeningGoed,Rentebedrag,""), "") -> € 30.09 | H59: =IFERROR(IF(LeningNietBetaald*LeningGoed,Eindsaldo,""), "") -> € 6,486.09
B60: =IFERROR(IF(LeningNietBetaald*LeningGoed,NummerBetaling,""), "") -> 51 | C60: =IFERROR(IF(LeningNietBetaald*LeningGoed,Betaaldatum,""), "") -> 2023-08-08 | D60: =IFERROR(IF(LeningNietBetaald*LeningGoed,WaardeLening,""), "") -> € 6,486.09 | E60: =IFERROR(IF(LeningNietBetaald*LeningGoed,MaandelijkseBetaling,""), "") -> € 108.53 | F60: =IFERROR(IF(LeningNietBetaald*LeningGoed,Hoofdsom,""), "") -> € 78.80 | G60: =IFERROR(IF(LeningNietBetaald*LeningGoed,Rentebedrag,""), "") -> € 29.73 | H60: =IFERROR(IF(LeningNietBetaald*LeningGoed,Eindsaldo,""), "") -> € 6,407.30
B61: =IFERROR(IF(LeningNietBetaald*LeningGoed,NummerBetaling,""), "") -> 52 | C61: =IFERROR(IF(LeningNietBetaald*LeningGoed,Betaaldatum,""), "") -> 2023-09-08 | D61: =IFERROR(IF(LeningNietBetaald*LeningGoed,WaardeLening,""), "") -> € 6,407.30 | E61: =IFERROR(IF(LeningNietBetaald*LeningGoed,MaandelijkseBetaling,""), "") -> € 108.53 | F61: =IFERROR(IF(LeningNietBetaald*LeningGoed,Hoofdsom,""), "") -> € 79.16 | G61: =IFERROR(IF(LeningNietBetaald*LeningGoed,Rentebedrag,""), "") -> € 29.37 | H61: =IFERROR(IF(LeningNietBetaald*LeningGoed,Eindsaldo,""), "") -> € 6,328.14
B62: =IFERROR(IF(LeningNietBetaald*LeningGoed,NummerBetaling,""), "") -> 53 | C62: =IFERROR(IF(LeningNietBetaald*LeningGoed,Betaaldatum,""), "") -> 2023-10-08 | D62: =IFERROR(IF(LeningNietBetaald*LeningGoed,WaardeLening,""), "") -> € 6,328.14 | E62: =IFERROR(IF(LeningNietBetaald*LeningGoed,MaandelijkseBetaling,""), "") -> € 108.53 | F62: =IFERROR(IF(LeningNietBetaald*LeningGoed,Hoofdsom,""), "") -> € 79.52 | G62: =IFERROR(IF(LeningNietBetaald*LeningGoed,Rentebedrag,""), "") -> € 29.00 | H62: =IFERROR(IF(LeningNietBetaald*LeningGoed,Eindsaldo,""), "") -> € 6,248.61
B63: =IFERROR(IF(LeningNietBetaald*LeningGoed,NummerBetaling,""), "") -> 54 | C63: =IFERROR(IF(LeningNietBetaald*LeningGoed,Betaaldatum,""), "") -> 2023-11-08 | D63: =IFERROR(IF(LeningNietBetaald*LeningGoed,WaardeLening,""), "") -> € 6,248.61 | E63: =IFERROR(IF(LeningNietBetaald*LeningGoed,MaandelijkseBetaling,""), "") -> € 108.53 | F63: =IFERROR(IF(LeningNietBetaald*LeningGoed,Hoofdsom,""), "") -> € 79.89 | G63: =IFERROR(IF(LeningNietBetaald*LeningGoed,Rentebedrag,""), "") -> € 28.64 | H63: =IFERROR(IF(LeningNietBetaald*LeningGoed,Eindsaldo,""), "") -> € 6,168.73
B64: =IFERROR(IF(LeningNietBetaald*LeningGoed,NummerBetaling,""), "") -> 55 | C64: =IFERROR(IF(LeningNietBetaald*LeningGoed,Betaaldatum,""), "") -> 2023-12-08 | D64: =IFERROR(IF(LeningNietBetaald*LeningGoed,WaardeLening,""), "") -> € 6,168.73 | E64: =IFERROR(IF(LeningNietBetaald*LeningGoed,MaandelijkseBetaling,""), "") -> € 108.53 | F64: =IFERROR(IF(LeningNietBetaald*LeningGoed,Hoofdsom,""), "") -> € 80.25 | G64: =IFERROR(IF(LeningNietBetaald*LeningGoed,Rentebedrag,""), "") -> € 28.27 | H64: =IFERROR(IF(LeningNietBetaald*LeningGoed,Eindsaldo,""), "") -> € 6,088.47
B65: =IFERROR(IF(LeningNietBetaald*LeningGoed,NummerBetaling,""), "") -> 56 | C65: =IFERROR(IF(LeningNietBetaald*LeningGoed,Betaaldatum,""), "") -> 2024-01-08 | D65: =IFERROR(IF(LeningNietBetaald*LeningGoed,WaardeLening,""), "") -> € 6,088.47 | E65: =IFERROR(IF(LeningNietBetaald*LeningGoed,MaandelijkseBetaling,""), "") -> € 108.53 | F65: =IFERROR(IF(LeningNietBetaald*LeningGoed,Hoofdsom,""), "") -> € 80.62 | G65: =IFERROR(IF(LeningNietBetaald*LeningGoed,Rentebedrag,""), "") -> € 27.91 | H65: =IFERROR(IF(LeningNietBetaald*LeningGoed,Eindsaldo,""), "") -> € 6,007.85
B66: =IFERROR(IF(LeningNietBetaald*LeningGoed,NummerBetaling,""), "") -> 57 | C66: =IFERROR(IF(LeningNietBetaald*LeningGoed,Betaaldatum,""), "") -> 2024-02-08 | D66: =IFERROR(IF(LeningNietBetaald*LeningGoed,WaardeLening,""), "") -> € 6,007.85 | E66: =IFERROR(IF(LeningNietBetaald*LeningGoed,MaandelijkseBetaling,""), "") -> € 108.53 | F66: =IFERROR(IF(LeningNietBetaald*LeningGoed,Hoofdsom,""), "") -> € 80.99 | G66: =IFERROR(IF(LeningNietBetaald*LeningGoed,Rentebedrag,""), "") -> € 27.54 | H66: =IFERROR(IF(LeningNietBetaald*LeningGoed,Eindsaldo,""), "") -> € 5,926.86
B67: =IFERROR(IF(LeningNietBetaald*LeningGoed,NummerBetaling,""), "") -> 58 | C67: =IFERROR(IF(LeningNietBetaald*LeningGoed,Betaaldatum,""), "") -> 2024-03-08 | D67: =IFERROR(IF(LeningNietBetaald*LeningGoed,WaardeLening,""), "") -> € 5,926.86 | E67: =IFERROR(IF(LeningNietBetaald*LeningGoed,MaandelijkseBetaling,""), "") -> € 108.53 | F67: =IFERROR(IF(LeningNietBetaald*LeningGoed,Hoofdsom,""), "") -> € 81.36 | G67: =IFERROR(IF(LeningNietBetaald*LeningGoed,Rentebedrag,""), "") -> € 27.16 | H67: =IFERROR(IF(LeningNietBetaald*LeningGoed,Eindsaldo,""), "") -> € 5,845.50
B68: =IFERROR(IF(LeningNietBetaald*LeningGoed,NummerBetaling,""), "") -> 59 | C68: =IFERROR(IF(LeningNietBetaald*LeningGoed,Betaaldatum,""), "") -> 2024-04-08 | D68: =IFERROR(IF(LeningNietBetaald*LeningGoed,WaardeLening,""), "") -> € 5,845.50 | E68: =IFERROR(IF(LeningNietBetaald*LeningGoed,MaandelijkseBetaling,""), "") -> € 108.53 | F68: =IFERROR(IF(LeningNietBetaald*LeningGoed,Hoofdsom,""), "") -> € 81.73 | G68: =IFERROR(IF(LeningNietBetaald*LeningGoed,Rentebedrag,""), "") -> € 26.79 | H68: =IFERROR(IF(LeningNietBetaald*LeningGoed,Eindsaldo,""), "") -> € 5,763.77
B69: =IFERROR(IF(LeningNietBetaald*LeningGoed,NummerBetaling,""), "") -> 60 | C69: =IFERROR(IF(LeningNietBetaald*LeningGoed,Betaaldatum,""), "") -> 2024-05-08 | D69: =IFERROR(IF(LeningNietBetaald*LeningGoed,WaardeLening,""), "") -> € 5,763.77 | E69: =IFERROR(IF(LeningNietBetaald*LeningGoed,MaandelijkseBetaling,""), "") -> € 108.53 | F69: =IFERROR(IF(LeningNietBetaald*LeningGoed,Hoofdsom,""), "") -> € 82.11 | G69: =IFERROR(IF(LeningNietBetaald*LeningGoed,Rentebedrag,""), "") -> € 26.42 | H69: =IFERROR(IF(LeningNietBetaald*LeningGoed,Eindsaldo,""), "") -> € 5,681.66
B70: =IFERROR(IF(LeningNietBetaald*LeningGoed,NummerBetaling,""), "") -> 61 | C70: =IFERROR(IF(LeningNietBetaald*LeningGoed,Betaaldatum,""), "") -> 2024-06-08 | D70: =IFERROR(IF(LeningNietBetaald*LeningGoed,WaardeLening,""), "") -> € 5,681.66 | E70: =IFERROR(IF(LeningNietBetaald*LeningGoed,MaandelijkseBetaling,""), "") -> € 108.53 | F70: =IFERROR(IF(LeningNietBetaald*LeningGoed,Hoofdsom,""), "") -> € 82.49 | G70: =IFERROR(IF(LeningNietBetaald*LeningGoed,Rentebedrag,""), "") -> € 26.04 | H70: =IFERROR(IF(LeningNietBetaald*LeningGoed,Eindsaldo,""), "") -> € 5,599.17
B71: =IFERROR(IF(LeningNietBetaald*LeningGoed,NummerBetaling,""), "") -> 62 | C71: =IFERROR(IF(LeningNietBetaald*LeningGoed,Betaaldatum,""), "") -> 2024-07-08 | D71: =IFERROR(IF(LeningNietBetaald*LeningGoed,WaardeLening,""), "") -> € 5,599.17 | E71: =IFERROR(IF(LeningNietBetaald*LeningGoed,MaandelijkseBetaling,""), "") -> € 108.53 | F71: =IFERROR(IF(LeningNietBetaald*LeningGoed,Hoofdsom,""), "") -> € 82.86 | G71: =IFERROR(IF(LeningNietBetaald*LeningGoed,Rentebedrag,""), "") -> € 25.66 | H71: =IFERROR(IF(LeningNietBetaald*LeningGoed,Eindsaldo,""), "") -> € 5,516.31
B72: =IFERROR(IF(LeningNietBetaald*LeningGoed,NummerBetaling,""), "") -> 63 | C72: =IFERROR(IF(LeningNietBetaald*LeningGoed,Betaaldatum,""), "") -> 2024-08-08 | D72: =IFERROR(IF(LeningNietBetaald*LeningGoed,WaardeLening,""), "") -> € 5,516.31 | E72: =IFERROR(IF(LeningNietBetaald*LeningGoed,MaandelijkseBetaling,""), "") -> € 108.53 | F72: =IFERROR(IF(LeningNietBetaald*LeningGoed,Hoofdsom,""), "") -> € 83.24 | G72: =IFERROR(IF(LeningNietBetaald*LeningGoed,Rentebedrag,""), "") -> € 25.28 | H72: =IFERROR(IF(LeningNietBetaald*LeningGoed,Eindsaldo,""), "") -> € 5,433.07
B73: =IFERROR(IF(LeningNietBetaald*LeningGoed,NummerBetaling,""), "") -> 64 | C73: =IFERROR(IF(LeningNietBetaald*LeningGoed,Betaaldatum,""), "") -> 2024-09-08 | D73: =IFERROR(IF(LeningNietBetaald*LeningGoed,WaardeLening,""), "") -> € 5,433.07 | E73: =IFERROR(IF(LeningNietBetaald*LeningGoed,MaandelijkseBetaling,""), "") -> € 108.53 | F73: =IFERROR(IF(LeningNietBetaald*LeningGoed,Hoofdsom,""), "") -> € 83.62 | G73: =IFERROR(IF(LeningNietBetaald*LeningGoed,Rentebedrag,""), "") -> € 24.90 | H73: =IFERROR(IF(LeningNietBetaald*LeningGoed,Eindsaldo,""), "") -> € 5,349.44
B74: =IFERROR(IF(LeningNietBetaald*LeningGoed,NummerBetaling,""), "") -> 65 | C74: =IFERROR(IF(LeningNietBetaald*LeningGoed,Betaaldatum,""), "") -> 2024-10-08 | D74: =IFERROR(IF(LeningNietBetaald*LeningGoed,WaardeLening,""), "") -> € 5,349.44 | E74: =IFERROR(IF(LeningNietBetaald*LeningGoed,MaandelijkseBetaling,""), "") -> € 108.53 | F74: =IFERROR(IF(LeningNietBetaald*LeningGoed,Hoofdsom,""), "") -> € 84.01 | G74: =IFERROR(IF(LeningNietBetaald*LeningGoed,Rentebedrag,""), "") -> € 24.52 | H74: =IFERROR(IF(LeningNietBetaald*LeningGoed,Eindsaldo,""), "") -> € 5,265.43
B75: =IFERROR(IF(LeningNietBetaald*LeningGoed,NummerBetaling,""), "") -> 66 | C75: =IFERROR(IF(LeningNietBetaald*LeningGoed,Betaaldatum,""), "") -> 2024-11-08 | D75: =IFERROR(IF(LeningNietBetaald*LeningGoed,WaardeLening,""), "") -> € 5,265.43 | E75: =IFERROR(IF(LeningNietBetaald*LeningGoed,MaandelijkseBetaling,""), "") -> € 108.53 | F75: =IFERROR(IF(LeningNietBetaald*LeningGoed,Hoofdsom,""), "") -> € 84.39 | G75: =IFERROR(IF(LeningNietBetaald*LeningGoed,Rentebedrag,""), "") -> € 24.13 | H75: =IFERROR(IF(LeningNietBetaald*LeningGoed,Eindsaldo,""), "") -> € 5,181.04
B76: =IFERROR(IF(LeningNietBetaald*LeningGoed,NummerBetaling,""), "") -> 67 | C76: =IFERROR(IF(LeningNietBetaald*LeningGoed,Betaaldatum,""), "") -> 2024-12-08 | D76: =IFERROR(IF(LeningNietBetaald*LeningGoed,WaardeLening,""), "") -> € 5,181.04 | E76: =IFERROR(IF(LeningNietBetaald*LeningGoed,MaandelijkseBetaling,""), "") -> € 108.53 | F76: =IFERROR(IF(LeningNietBetaald*LeningGoed,Hoofdsom,""), "") -> € 84.78 | G76: =IFERROR(IF(LeningNietBetaald*LeningGoed,Rentebedrag,""), "") -> € 23.75 | H76: =IFERROR(IF(LeningNietBetaald*LeningGoed,Eindsaldo,""), "") -> € 5,096.26
B77: =IFERROR(IF(LeningNietBetaald*LeningGoed,NummerBetaling,""), "") -> 68 | C77: =IFERROR(IF(LeningNietBetaald*LeningGoed,Betaaldatum,""), "") -> 2025-01-08 | D77: =IFERROR(IF(LeningNietBetaald*LeningGoed,WaardeLening,""), "") -> € 5,096.26 | E77: =IFERROR(IF(LeningNietBetaald*LeningGoed,MaandelijkseBetaling,""), "") -> € 108.53 | F77: =IFERROR(IF(LeningNietBetaald*LeningGoed,Hoofdsom,""), "") -> € 85.17 | G77: =IFERROR(IF(LeningNietBetaald*LeningGoed,Rentebedrag,""), "") -> € 23.36 | H77: =IFERROR(IF(LeningNietBetaald*LeningGoed,Eindsaldo,""), "") -> € 5,011.09
B78: =IFERROR(IF(LeningNietBetaald*LeningGoed,NummerBetaling,""), "") -> 69 | C78: =IFERROR(IF(LeningNietBetaald*LeningGoed,Betaaldatum,""), "") -> 2025-02-08 | D78: =IFERROR(IF(LeningNietBetaald*LeningGoed,WaardeLening,""), "") -> € 5,011.09 | E78: =IFERROR(IF(LeningNietBetaald*LeningGoed,MaandelijkseBetaling,""), "") -> € 108.53 | F78: =IFERROR(IF(LeningNietBetaald*LeningGoed,Hoofdsom,""), "") -> € 85.56 | G78: =IFERROR(IF(LeningNietBetaald*LeningGoed,Rentebedrag,""), "") -> € 22.97 | H78: =IFERROR(IF(LeningNietBetaald*LeningGoed,Eindsaldo,""), "") -> € 4,925.53
B79: =IFERROR(IF(LeningNietBetaald*LeningGoed,NummerBetaling,""), "") -> 70 | C79: =IFERROR(IF(LeningNietBetaald*LeningGoed,Betaaldatum,""), "") -> 2025-03-08 | D79: =IFERROR(IF(LeningNietBetaald*LeningGoed,WaardeLening,""), "") -> € 4,925.53 | E79: =IFERROR(IF(LeningNietBetaald*LeningGoed,MaandelijkseBetaling,""), "") -> € 108.53 | F79: =IFERROR(IF(LeningNietBetaald*LeningGoed,Hoofdsom,""), "") -> € 85.95 | G79: =IFERROR(IF(LeningNietBetaald*LeningGoed,Rentebedrag,""), "") -> € 22.58 | H79: =IFERROR(IF(LeningNietBetaald*LeningGoed,Eindsaldo,""), "") -> € 4,839.58
B80: =IFERROR(IF(LeningNietBetaald*LeningGoed,NummerBetaling,""), "") -> 71 | C80: =IFERROR(IF(LeningNietBetaald*LeningGoed,Betaaldatum,""), "") -> 2025-04-08 | D80: =IFERROR(IF(LeningNietBetaald*LeningGoed,WaardeLening,""), "") -> € 4,839.58 | E80: =IFERROR(IF(LeningNietBetaald*LeningGoed,MaandelijkseBetaling,""), "") -> € 108.53 | F80: =IFERROR(IF(LeningNietBetaald*LeningGoed,Hoofdsom,""), "") -> € 86.34 | G80: =IFERROR(IF(LeningNietBetaald*LeningGoed,Rentebedrag,""), "") -> € 22.18 | H80: =IFERROR(IF(LeningNietBetaald*LeningGoed,Eindsaldo,""), "") -> € 4,753.24
B81: =IFERROR(IF(LeningNietBetaald*LeningGoed,NummerBetaling,""), "") -> 72 | C81: =IFERROR(IF(LeningNietBetaald*LeningGoed,Betaaldatum,""), "") -> 2025-05-08 | D81: =IFERROR(IF(LeningNietBetaald*LeningGoed,WaardeLening,""), "") -> € 4,753.24 | E81: =IFERROR(IF(LeningNietBetaald*LeningGoed,MaandelijkseBetaling,""), "") -> € 108.53 | F81: =IFERROR(IF(LeningNietBetaald*LeningGoed,Hoofdsom,""), "") -> € 86.74 | G81: =IFERROR(IF(LeningNietBetaald*LeningGoed,Rentebedrag,""), "") -> € 21.79 | H81: =IFERROR(IF(LeningNietBetaald*LeningGoed,Eindsaldo,""), "") -> € 4,666.50
B82: =IFERROR(IF(LeningNietBetaald*LeningGoed,NummerBetaling,""), "") -> 73 | C82: =IFERROR(IF(LeningNietBetaald*LeningGoed,Betaaldatum,""), "") -> 2025-06-08 | D82: =IFERROR(IF(LeningNietBetaald*LeningGoed,WaardeLening,""), "") -> € 4,666.50 | E82: =IFERROR(IF(LeningNietBetaald*LeningGoed,MaandelijkseBetaling,""), "") -> € 108.53 | F82: =IFERROR(IF(LeningNietBetaald*LeningGoed,Hoofdsom,""), "") -> € 87.14 | G82: =IFERROR(IF(LeningNietBetaald*LeningGoed,Rentebedrag,""), "") -> € 21.39 | H82: =IFERROR(IF(LeningNietBetaald*LeningGoed,Eindsaldo,""), "") -> € 4,579.36
B83: =IFERROR(IF(LeningNietBetaald*LeningGoed,NummerBetaling,""), "") -> 74 | C83: =IFERROR(IF(LeningNietBetaald*LeningGoed,Betaaldatum,""), "") -> 2025-07-08 | D83: =IFERROR(IF(LeningNietBetaald*LeningGoed,WaardeLening,""), "") -> € 4,579.36 | E83: =IFERROR(IF(LeningNietBetaald*LeningGoed,MaandelijkseBetaling,""), "") -> € 108.53 | F83: =IFERROR(IF(LeningNietBetaald*LeningGoed,Hoofdsom,""), "") -> € 87.54 | G83: =IFERROR(IF(LeningNietBetaald*LeningGoed,Rentebedrag,""), "") -> € 20.99 | H83: =IFERROR(IF(LeningNietBetaald*LeningGoed,Eindsaldo,""), "") -> € 4,491.82
B84: =IFERROR(IF(LeningNietBetaald*LeningGoed,NummerBetaling,""), "") -> 75 | C84: =IFERROR(IF(LeningNietBetaald*LeningGoed,Betaaldatum,""), "") -> 2025-08-08 | D84: =IFERROR(IF(LeningNietBetaald*LeningGoed,WaardeLening,""), "") -> € 4,491.82 | E84: =IFERROR(IF(LeningNietBetaald*LeningGoed,MaandelijkseBetaling,""), "") -> € 108.53 | F84: =IFERROR(IF(LeningNietBetaald*LeningGoed,Hoofdsom,""), "") -> € 87.94 | G84: =IFERROR(IF(LeningNietBetaald*LeningGoed,Rentebedrag,""), "") -> € 20.59 | H84: =IFERROR(IF(LeningNietBetaald*LeningGoed,Eindsaldo,""), "") -> € 4,403.88
B85: =IFERROR(IF(LeningNietBetaald*LeningGoed,NummerBetaling,""), "") -> 76 | C85: =IFERROR(IF(LeningNietBetaald*LeningGoed,Betaaldatum,""), "") -> 2025-09-08 | D85: =IFERROR(IF(LeningNietBetaald*LeningGoed,WaardeLening,""), "") -> € 4,403.88 | E85: =IFERROR(IF(LeningNietBetaald*LeningGoed,MaandelijkseBetaling,""), "") -> € 108.53 | F85: =IFERROR(IF(LeningNietBetaald*LeningGoed,Hoofdsom,""), "") -> € 88.34 | G85: =IFERROR(IF(LeningNietBetaald*LeningGoed,Rentebedrag,""), "") -> € 20.18 | H85: =IFERROR(IF(LeningNietBetaald*LeningGoed,Eindsaldo,""), "") -> € 4,315.54
B86: =IFERROR(IF(LeningNietBetaald*LeningGoed,NummerBetaling,""), "") -> 77 | C86: =IFERROR(IF(LeningNietBetaald*LeningGoed,Betaaldatum,""), "") -> 2025-10-08 | D86: =IFERROR(IF(LeningNietBetaald*LeningGoed,WaardeLening,""), "") -> € 4,315.54 | E86: =IFERROR(IF(LeningNietBetaald*LeningGoed,MaandelijkseBetaling,""), "") -> € 108.53 | F86: =IFERROR(IF(LeningNietBetaald*LeningGoed,Hoofdsom,""), "") -> € 88.75 | G86: =IFERROR(IF(LeningNietBetaald*LeningGoed,Rentebedrag,""), "") -> € 19.78 | H86: =IFERROR(IF(LeningNietBetaald*LeningGoed,Eindsaldo,""), "") -> € 4,226.79
B87: =IFERROR(IF(LeningNietBetaald*LeningGoed,NummerBetaling,""), "") -> 78 | C87: =IFERROR(IF(LeningNietBetaald*LeningGoed,Betaaldatum,""), "") -> 2025-11-08 | D87: =IFERROR(IF(LeningNietBetaald*LeningGoed,WaardeLening,""), "") -> € 4,226.79 | E87: =IFERROR(IF(LeningNietBetaald*LeningGoed,MaandelijkseBetaling,""), "") -> € 108.53 | F87: =IFERROR(IF(LeningNietBetaald*LeningGoed,Hoofdsom,""), "") -> € 89.15 | G87: =IFERROR(IF(LeningNietBetaald*LeningGoed,Rentebedrag,""), "") -> € 19.37 | H87: =IFERROR(IF(LeningNietBetaald*LeningGoed,Eindsaldo,""), "") -> € 4,137.64
B88: =IFERROR(IF(LeningNietBetaald*LeningGoed,NummerBetaling,""), "") -> 79 | C88: =IFERROR(IF(LeningNietBetaald*LeningGoed,Betaaldatum,""), "") -> 2025-12-08 | D88: =IFERROR(IF(LeningNietBetaald*LeningGoed,WaardeLening,""), "") -> € 4,137.64 | E88: =IFERROR(IF(LeningNietBetaald*LeningGoed,MaandelijkseBetaling,""), "") -> € 108.53 | F88: =IFERROR(IF(LeningNietBetaald*LeningGoed,Hoofdsom,""), "") -> € 89.56 | G88: =IFERROR(IF(LeningNietBetaald*LeningGoed,Rentebedrag,""), "") -> € 18.96 | H88: =IFERROR(IF(LeningNietBetaald*LeningGoed,Eindsaldo,""), "") -> € 4,048.08
B89: =IFERROR(IF(LeningNietBetaald*LeningGoed,NummerBetaling,""), "") -> 80 | C89: =IFERROR(IF(LeningNietBetaald*LeningGoed,Betaaldatum,""), "") -> 2026-01-08 | D89: =IFERROR(IF(LeningNietBetaald*LeningGoed,WaardeLening,""), "") -> € 4,048.08 | E89: =IFERROR(IF(LeningNietBetaald*LeningGoed,MaandelijkseBetaling,""), "") -> € 108.53 | F89: =IFERROR(IF(LeningNietBetaald*LeningGoed,Hoofdsom,""), "") -> € 89.97 | G89: =IFERROR(IF(LeningNietBetaald*LeningGoed,Rentebedrag,""), "") -> € 18.55 | H89: =IFERROR(IF(LeningNietBetaald*LeningGoed,Eindsaldo,""), "") -> € 3,958.11
B90: =IFERROR(IF(LeningNietBetaald*LeningGoed,NummerBetaling,""), "") -> 81 | C90: =IFERROR(IF(LeningNietBetaald*LeningGoed,Betaaldatum,""), "") -> 2026-02-08 | D90: =IFERROR(IF(LeningNietBetaald*LeningGoed,WaardeLening,""), "") -> € 3,958.11 | E90: =IFERROR(IF(LeningNietBetaald*LeningGoed,MaandelijkseBetaling,""), "") -> € 108.53 | F90: =IFERROR(IF(LeningNietBetaald*LeningGoed,Hoofdsom,""), "") -> € 90.38 | G90: =IFERROR(IF(LeningNietBetaald*LeningGoed,Rentebedrag,""), "") -> € 18.14 | H90: =IFERROR(IF(LeningNietBetaald*LeningGoed,Eindsaldo,""), "") -> € 3,867.72
B91: =IFERROR(IF(LeningNietBetaald*LeningGoed,NummerBetaling,""), "") -> 82 | C91: =IFERROR(IF(LeningNietBetaald*LeningGoed,Betaaldatum,""), "") -> 2026-03-08 | D91: =IFERROR(IF(LeningNietBetaald*LeningGoed,WaardeLening,""), "") -> € 3,867.72 | E91: =IFERROR(IF(LeningNietBetaald*LeningGoed,MaandelijkseBetaling,""), "") -> € 108.53 | F91: =IFERROR(IF(LeningNietBetaald*LeningGoed,Hoofdsom,""), "") -> € 90.80 | G91: =IFERROR(IF(LeningNietBetaald*LeningGoed,Rentebedrag,""), "") -> € 17.73 | H91: =IFERROR(IF(LeningNietBetaald*LeningGoed,Eindsaldo,""), "") -> € 3,776.92
B92: =IFERROR(IF(LeningNietBetaald*LeningGoed,NummerBetaling,""), "") -> 83 | C92: =IFERROR(IF(LeningNietBetaald*LeningGoed,Betaaldatum,""), "") -> 2026-04-08 | D92: =IFERROR(IF(LeningNietBetaald*LeningGoed,WaardeLening,""), "") -> € 3,776.92 | E92: =IFERROR(IF(LeningNietBetaald*LeningGoed,MaandelijkseBetaling,""), "") -> € 108.53 | F92: =IFERROR(IF(LeningNietBetaald*LeningGoed,Hoofdsom,""), "") -> € 91.22 | G92: =IFERROR(IF(LeningNietBetaald*LeningGoed,Rentebedrag,""), "") -> € 17.31 | H92: =IFERROR(IF(LeningNietBetaald*LeningGoed,Eindsaldo,""), "") -> € 3,685.71
B93: =IFERROR(IF(LeningNietBetaald*LeningGoed,NummerBetaling,""), "") -> 84 | C93: =IFERROR(IF(LeningNietBetaald*LeningGoed,Betaaldatum,""), "") -> 2026-05-08 | D93: =IFERROR(IF(LeningNietBetaald*LeningGoed,WaardeLening,""), "") -> € 3,685.71 | E93: =IFERROR(IF(LeningNietBetaald*LeningGoed,MaandelijkseBetaling,""), "") -> € 108.53 | F93: =IFERROR(IF(LeningNietBetaald*LeningGoed,Hoofdsom,""), "") -> € 91.63 | G93: =IFERROR(IF(LeningNietBetaald*LeningGoed,Rentebedrag,""), "") -> € 16.89 | H93: =IFERROR(IF(LeningNietBetaald*LeningGoed,Eindsaldo,""), "") -> € 3,594.07
B94: =IFERROR(IF(LeningNietBetaald*LeningGoed,NummerBetaling,""), "") -> 85 | C94: =IFERROR(IF(LeningNietBetaald*LeningGoed,Betaaldatum,""), "") -> 2026-06-08 | D94: =IFERROR(IF(LeningNietBetaald*LeningGoed,WaardeLening,""), "") -> € 3,594.07 | E94: =IFERROR(IF(LeningNietBetaald*LeningGoed,MaandelijkseBetaling,""), "") -> € 108.53 | F94: =IFERROR(IF(LeningNietBetaald*LeningGoed,Hoofdsom,""), "") -> € 92.05 | G94: =IFERROR(IF(LeningNietBetaald*LeningGoed,Rentebedrag,""), "") -> € 16.47 | H94: =IFERROR(IF(LeningNietBetaald*LeningGoed,Eindsaldo,""), "") -> € 3,502.02
B95: =IFERROR(IF(LeningNietBetaald*LeningGoed,NummerBetaling,""), "") -> 86 | C95: =IFERROR(IF(LeningNietBetaald*LeningGoed,Betaaldatum,""), "") -> 2026-07-08 | D95: =IFERROR(IF(LeningNietBetaald*LeningGoed,WaardeLening,""), "") -> € 3,502.02 | E95: =IFERROR(IF(LeningNietBetaald*LeningGoed,MaandelijkseBetaling,""), "") -> € 108.53 | F95: =IFERROR(IF(LeningNietBetaald*LeningGoed,Hoofdsom,""), "") -> € 92.48 | G95: =IFERROR(IF(LeningNietBetaald*LeningGoed,Rentebedrag,""), "") -> € 16.05 | H95: =IFERROR(IF(LeningNietBetaald*LeningGoed,Eindsaldo,""), "") -> € 3,409.54
B96: =IFERROR(IF(LeningNietBetaald*LeningGoed,NummerBetaling,""), "") -> 87 | C96: =IFERROR(IF(LeningNietBetaald*LeningGoed,Betaaldatum,""), "") -> 2026-08-08 | D96: =IFERROR(IF(LeningNietBetaald*LeningGoed,WaardeLening,""), "") -> € 3,409.54 | E96: =IFERROR(IF(LeningNietBetaald*LeningGoed,MaandelijkseBetaling,""), "") -> € 108.53 | F96: =IFERROR(IF(LeningNietBetaald*LeningGoed,Hoofdsom,""), "") -> € 92.90 | G96: =IFERROR(IF(LeningNietBetaald*LeningGoed,Rentebedrag,""), "") -> € 15.63 | H96: =IFERROR(IF(LeningNietBetaald*LeningGoed,Eindsaldo,""), "") -> € 3,316.65
B97: =IFERROR(IF(LeningNietBetaald*LeningGoed,NummerBetaling,""), "") -> 88 | C97: =IFERROR(IF(LeningNietBetaald*LeningGoed,Betaaldatum,""), "") -> 2026-09-08 | D97: =IFERROR(IF(LeningNietBetaald*LeningGoed,WaardeLening,""), "") -> € 3,316.65 | E97: =IFERROR(IF(LeningNietBetaald*LeningGoed,MaandelijkseBetaling,""), "") -> € 108.53 | F97: =IFERROR(IF(LeningNietBetaald*LeningGoed,Hoofdsom,""), "") -> € 93.32 | G97: =IFERROR(IF(LeningNietBetaald*LeningGoed,Rentebedrag,""), "") -> € 15.20 | H97: =IFERROR(IF(LeningNietBetaald*LeningGoed,Eindsaldo,""), "") -> € 3,223.32
B98: =IFERROR(IF(LeningNietBetaald*LeningGoed,NummerBetaling,""), "") -> 89 | C98: =IFERROR(IF(LeningNietBetaald*LeningGoed,Betaaldatum,""), "") -> 2026-10-08 | D98: =IFERROR(IF(LeningNietBetaald*LeningGoed,WaardeLening,""), "") -> € 3,223.32 | E98: =IFERROR(IF(LeningNietBetaald*LeningGoed,MaandelijkseBetaling,""), "") -> € 108.53 | F98: =IFERROR(IF(LeningNietBetaald*LeningGoed,Hoofdsom,""), "") -> € 93.75 | G98: =IFERROR(IF(LeningNietBetaald*LeningGoed,Rentebedrag,""), "") -> € 14.77 | H98: =IFERROR(IF(LeningNietBetaald*LeningGoed,Eindsaldo,""), "") -> € 3,129.57
B99: =IFERROR(IF(LeningNietBetaald*LeningGoed,NummerBetaling,""), "") -> 90 | C99: =IFERROR(IF(LeningNietBetaald*LeningGoed,Betaaldatum,""), "") -> 2026-11-08 | D99: =IFERROR(IF(LeningNietBetaald*LeningGoed,WaardeLening,""), "") -> € 3,129.57 | E99: =IFERROR(IF(LeningNietBetaald*LeningGoed,MaandelijkseBetaling,""), "") -> € 108.53 | F99: =IFERROR(IF(LeningNietBetaald*LeningGoed,Hoofdsom,""), "") -> € 94.18 | G99: =IFERROR(IF(LeningNietBetaald*LeningGoed,Rentebedrag,""), "") -> € 14.34 | H99: =IFERROR(IF(LeningNietBetaald*LeningGoed,Eindsaldo,""), "") -> € 3,035.38
B100: =IFERROR(IF(LeningNietBetaald*LeningGoed,NummerBetaling,""), "") -> 91 | C100: =IFERROR(IF(LeningNietBetaald*LeningGoed,Betaaldatum,""), "") -> 2026-12-08 | D100: =IFERROR(IF(LeningNietBetaald*LeningGoed,WaardeLening,""), "") -> € 3,035.38 | E100: =IFERROR(IF(LeningNietBetaald*LeningGoed,MaandelijkseBetaling,""), "") -> € 108.53 | F100: =IFERROR(IF(LeningNietBetaald*LeningGoed,Hoofdsom,""), "") -> € 94.61 | G100: =IFERROR(IF(LeningNietBetaald*LeningGoed,Rentebedrag,""), "") -> € 13.91 | H100: =IFERROR(IF(LeningNietBetaald*LeningGoed,Eindsaldo,""), "") -> € 2,940.77
B101: =IFERROR(IF(LeningNietBetaald*LeningGoed,NummerBetaling,""), "") -> 92 | C101: =IFERROR(IF(LeningNietBetaald*LeningGoed,Betaaldatum,""), "") -> 2027-01-08 | D101: =IFERROR(IF(LeningNietBetaald*LeningGoed,WaardeLening,""), "") -> € 2,940.77 | E101: =IFERROR(IF(LeningNietBetaald*LeningGoed,MaandelijkseBetaling,""), "") -> € 108.53 | F101: =IFERROR(IF(LeningNietBetaald*LeningGoed,Hoofdsom,""), "") -> € 95.05 | G101: =IFERROR(IF(LeningNietBetaald*LeningGoed,Rentebedrag,""), "") -> € 13.48 | H101: =IFERROR(IF(LeningNietBetaald*LeningGoed,Eindsaldo,""), "") -> € 2,845.72
B102: =IFERROR(IF(LeningNietBetaald*LeningGoed,NummerBetaling,""), "") -> 93 | C102: =IFERROR(IF(LeningNietBetaald*LeningGoed,Betaaldatum,""), "") -> 2027-02-08 | D102: =IFERROR(IF(LeningNietBetaald*LeningGoed,WaardeLening,""), "") -> € 2,845.72 | E102: =IFERROR(IF(LeningNietBetaald*LeningGoed,MaandelijkseBetaling,""), "") -> € 108.53 | F102: =IFERROR(IF(LeningNietBetaald*LeningGoed,Hoofdsom,""), "") -> € 95.48 | G102: =IFERROR(IF(LeningNietBetaald*LeningGoed,Rentebedrag,""), "") -> € 13.04 | H102: =IFERROR(IF(LeningNietBetaald*LeningGoed,Eindsaldo,""), "") -> € 2,750.24
B103: =IFERROR(IF(LeningNietBetaald*LeningGoed,NummerBetaling,""), "") -> 94 | C103: =IFERROR(IF(LeningNietBetaald*LeningGoed,Betaaldatum,""), "") -> 2027-03-08 | D103: =IFERROR(IF(LeningNietBetaald*LeningGoed,WaardeLening,""), "") -> € 2,750.24 | E103: =IFERROR(IF(LeningNietBetaald*LeningGoed,MaandelijkseBetaling,""), "") -> € 108.53 | F103: =IFERROR(IF(LeningNietBetaald*LeningGoed,Hoofdsom,""), "") -> € 95.92 | G103: =IFERROR(IF(LeningNietBetaald*LeningGoed,Rentebedrag,""), "") -> € 12.61 | H103: =IFERROR(IF(LeningNietBetaald*LeningGoed,Eindsaldo,""), "") -> € 2,654.32
B104: =IFERROR(IF(LeningNietBetaald*LeningGoed,NummerBetaling,""), "") -> 95 | C104: =IFERROR(IF(LeningNietBetaald*LeningGoed,Betaaldatum,""), "") -> 2027-04-08 | D104: =IFERROR(IF(LeningNietBetaald*LeningGoed,WaardeLening,""), "") -> € 2,654.32 | E104: =IFERROR(IF(LeningNietBetaald*LeningGoed,MaandelijkseBetaling,""), "") -> € 108.53 | F104: =IFERROR(IF(LeningNietBetaald*LeningGoed,Hoofdsom,""), "") -> € 96.36 | G104: =IFERROR(IF(LeningNietBetaald*LeningGoed,Rentebedrag,""), "") -> € 12.17 | H104: =IFERROR(IF(LeningNietBetaald*LeningGoed,Eindsaldo,""), "") -> € 2,557.96
B105: =IFERROR(IF(LeningNietBetaald*LeningGoed,NummerBetaling,""), "") -> 96 | C105: =IFERROR(IF(LeningNietBetaald*LeningGoed,Betaaldatum,""), "") -> 2027-05-08 | D105: =IFERROR(IF(LeningNietBetaald*LeningGoed,WaardeLening,""), "") -> € 2,557.96 | E105: =IFERROR(IF(LeningNietBetaald*LeningGoed,MaandelijkseBetaling,""), "") -> € 108.53 | F105: =IFERROR(IF(LeningNietBetaald*LeningGoed,Hoofdsom,""), "") -> € 96.80 | G105: =IFERROR(IF(LeningNietBetaald*LeningGoed,Rentebedrag,""), "") -> € 11.72 | H105: =IFERROR(IF(LeningNietBetaald*LeningGoed,Eindsaldo,""), "") -> € 2,461.16
B106: =IFERROR(IF(LeningNietBetaald*LeningGoed,NummerBetaling,""), "") -> 97 | C106: =IFERROR(IF(LeningNietBetaald*LeningGoed,Betaaldatum,""), "") -> 2027-06-08 | D106: =IFERROR(IF(LeningNietBetaald*LeningGoed,WaardeLening,""), "") -> € 2,461.16 | E106: =IFERROR(IF(LeningNietBetaald*LeningGoed,MaandelijkseBetaling,""), "") -> € 108.53 | F106: =IFERROR(IF(LeningNietBetaald*LeningGoed,Hoofdsom,""), "") -> € 97.25 | G106: =IFERROR(IF(LeningNietBetaald*LeningGoed,Rentebedrag,""), "") -> € 11.28 | H106: =IFERROR(IF(LeningNietBetaald*LeningGoed,Eindsaldo,""), "") -> € 2,363.91
B107: =IFERROR(IF(LeningNietBetaald*LeningGoed,NummerBetaling,""), "") -> 98 | C107: =IFERROR(IF(LeningNietBetaald*LeningGoed,Betaaldatum,""), "") -> 2027-07-08 | D107: =IFERROR(IF(LeningNietBetaald*LeningGoed,WaardeLening,""), "") -> € 2,363.91 | E107: =IFERROR(IF(LeningNietBetaald*LeningGoed,MaandelijkseBetaling,""), "") -> € 108.53 | F107: =IFERROR(IF(LeningNietBetaald*LeningGoed,Hoofdsom,""), "") -> € 97.69 | G107: =IFERROR(IF(LeningNietBetaald*LeningGoed,Rentebedrag,""), "") -> € 10.83 | H107: =IFERROR(IF(LeningNietBetaald*LeningGoed,Eindsaldo,""), "") -> € 2,266.22
B108: =IFERROR(IF(LeningNietBetaald*LeningGoed,NummerBetaling,""), "") -> 99 | C108: =IFERROR(IF(LeningNietBetaald*LeningGoed,Betaaldatum,""), "") -> 2027-08-08 | D108: =IFERROR(IF(LeningNietBetaald*LeningGoed,WaardeLening,""), "") -> € 2,266.22 | E108: =IFERROR(IF(LeningNietBetaald*LeningGoed,MaandelijkseBetaling,""), "") -> € 108.53 | F108: =IFERROR(IF(LeningNietBetaald*LeningGoed,Hoofdsom,""), "") -> € 98.14 | G108: =IFERROR(IF(LeningNietBetaald*LeningGoed,Rentebedrag,""), "") -> € 10.39 | H108: =IFERROR(IF(LeningNietBetaald*LeningGoed,Eindsaldo,""), "") -> € 2,168.08
B109: =IFERROR(IF(LeningNietBetaald*LeningGoed,NummerBetaling,""), "") -> 100 | C109: =IFERROR(IF(LeningNietBetaald*LeningGoed,Betaaldatum,""), "") -> 2027-09-08 | D109: =IFERROR(IF(LeningNietBetaald*LeningGoed,WaardeLening,""), "") -> € 2,168.08 | E109: =IFERROR(IF(LeningNietBetaald*LeningGoed,MaandelijkseBetaling,""), "") -> € 108.53 | F109: =IFERROR(IF(LeningNietBetaald*LeningGoed,Hoofdsom,""), "") -> € 98.59 | G109: =IFERROR(IF(LeningNietBetaald*LeningGoed,Rentebedrag,""), "") -> € 9.94 | H109: =IFERROR(IF(LeningNietBetaald*LeningGoed,Eindsaldo,""), "") -> € 2,069.49
B110: =IFERROR(IF(LeningNietBetaald*LeningGoed,NummerBetaling,""), "") -> 101 | C110: =IFERROR(IF(LeningNietBetaald*LeningGoed,Betaaldatum,""), "") -> 2027-10-08 | D110: =IFERROR(IF(LeningNietBetaald*LeningGoed,WaardeLening,""), "") -> € 2,069.49 | E110: =IFERROR(IF(LeningNietBetaald*LeningGoed,MaandelijkseBetaling,""), "") -> € 108.53 | F110: =IFERROR(IF(LeningNietBetaald*LeningGoed,Hoofdsom,""), "") -> € 99.04 | G110: =IFERROR(IF(LeningNietBetaald*LeningGoed,Rentebedrag,""), "") -> € 9.49 | H110: =IFERROR(IF(LeningNietBetaald*LeningGoed,Eindsaldo,""), "") -> € 1,970.45
B111: =IFERROR(IF(LeningNietBetaald*LeningGoed,NummerBetaling,""), "") -> 102 | C111: =IFERROR(IF(LeningNietBetaald*LeningGoed,Betaaldatum,""), "") -> 2027-11-08 | D111: =IFERROR(IF(LeningNietBetaald*LeningGoed,WaardeLening,""), "") -> € 1,970.45 | E111: =IFERROR(IF(LeningNietBetaald*LeningGoed,MaandelijkseBetaling,""), "") -> € 108.53 | F111: =IFERROR(IF(LeningNietBetaald*LeningGoed,Hoofdsom,""), "") -> € 99.50 | G111: =IFERROR(IF(LeningNietBetaald*LeningGoed,Rentebedrag,""), "") -> € 9.03 | H111: =IFERROR(IF(LeningNietBetaald*LeningGoed,Eindsaldo,""), "") -> € 1,870.95
B112: =IFERROR(IF(LeningNietBetaald*LeningGoed,NummerBetaling,""), "") -> 103 | C112: =IFERROR(IF(LeningNietBetaald*LeningGoed,Betaaldatum,""), "") -> 2027-12-08 | D112: =IFERROR(IF(LeningNietBetaald*LeningGoed,WaardeLening,""), "") -> € 1,870.95 | E112: =IFERROR(IF(LeningNietBetaald*LeningGoed,MaandelijkseBetaling,""), "") -> € 108.53 | F112: =IFERROR(IF(LeningNietBetaald*LeningGoed,Hoofdsom,""), "") -> € 99.95 | G112: =IFERROR(IF(LeningNietBetaald*LeningGoed,Rentebedrag,""), "") -> € 8.58 | H112: =IFERROR(IF(LeningNietBetaald*LeningGoed,Eindsaldo,""), "") -> € 1,771.00
B113: =IFERROR(IF(LeningNietBetaald*LeningGoed,NummerBetaling,""), "") -> 104 | C113: =IFERROR(IF(LeningNietBetaald*LeningGoed,Betaaldatum,""), "") -> 2028-01-08 | D113: =IFERROR(IF(LeningNietBetaald*LeningGoed,WaardeLening,""), "") -> € 1,771.00 | E113: =IFERROR(IF(LeningNietBetaald*LeningGoed,MaandelijkseBetaling,""), "") -> € 108.53 | F113: =IFERROR(IF(LeningNietBetaald*LeningGoed,Hoofdsom,""), "") -> € 100.41 | G113: =IFERROR(IF(LeningNietBetaald*LeningGoed,Rentebedrag,""), "") -> € 8.12 | H113: =IFERROR(IF(LeningNietBetaald*LeningGoed,Eindsaldo,""), "") -> € 1,670.59
B114: =IFERROR(IF(LeningNietBetaald*LeningGoed,NummerBetaling,""), "") -> 105 | C114: =IFERROR(IF(LeningNietBetaald*LeningGoed,Betaaldatum,""), "") -> 2028-02-08 | D114: =IFERROR(IF(LeningNietBetaald*LeningGoed,WaardeLening,""), "") -> € 1,670.59 | E114: =IFERROR(IF(LeningNietBetaald*LeningGoed,MaandelijkseBetaling,""), "") -> € 108.53 | F114: =IFERROR(IF(LeningNietBetaald*LeningGoed,Hoofdsom,""), "") -> € 100.87 | G114: =IFERROR(IF(LeningNietBetaald*LeningGoed,Rentebedrag,""), "") -> € 7.66 | H114: =IFERROR(IF(LeningNietBetaald*LeningGoed,Eindsaldo,""), "") -> € 1,569.72
B115: =IFERROR(IF(LeningNietBetaald*LeningGoed,NummerBetaling,""), "") -> 106 | C115: =IFERROR(IF(LeningNietBetaald*LeningGoed,Betaaldatum,""), "") -> 2028-03-08 | D115: =IFERROR(IF(LeningNietBetaald*LeningGoed,WaardeLening,""), "") -> € 1,569.72 | E115: =IFERROR(IF(LeningNietBetaald*LeningGoed,MaandelijkseBetaling,""), "") -> € 108.53 | F115: =IFERROR(IF(LeningNietBetaald*LeningGoed,Hoofdsom,""), "") -> € 101.33 | G115: =IFERROR(IF(LeningNietBetaald*LeningGoed,Rentebedrag,""), "") -> € 7.19 | H115: =IFERROR(IF(LeningNietBetaald*LeningGoed,Eindsaldo,""), "") -> € 1,468.39
B116: =IFERROR(IF(LeningNietBetaald*LeningGoed,NummerBetaling,""), "") -> 107 | C116: =IFERROR(IF(LeningNietBetaald*LeningGoed,Betaaldatum,""), "") -> 2028-04-08 | D116: =IFERROR(IF(LeningNietBetaald*LeningGoed,WaardeLening,""), "") -> € 1,468.39 | E116: =IFERROR(IF(LeningNietBetaald*LeningGoed,MaandelijkseBetaling,""), "") -> € 108.53 | F116: =IFERROR(IF(LeningNietBetaald*LeningGoed,Hoofdsom,""), "") -> € 101.80 | G116: =IFERROR(IF(LeningNietBetaald*LeningGoed,Rentebedrag,""), "") -> € 6.73 | H116: =IFERROR(IF(LeningNietBetaald*LeningGoed,Eindsaldo,""), "") -> € 1,366.60
B117: =IFERROR(IF(LeningNietBetaald*LeningGoed,NummerBetaling,""), "") -> 108 | C117: =IFERROR(IF(LeningNietBetaald*LeningGoed,Betaaldatum,""), "") -> 2028-05-08 | D117: =IFERROR(IF(LeningNietBetaald*LeningGoed,WaardeLening,""), "") -> € 1,366.60 | E117: =IFERROR(IF(LeningNietBetaald*LeningGoed,MaandelijkseBetaling,""), "") -> € 108.53 | F117: =IFERROR(IF(LeningNietBetaald*LeningGoed,Hoofdsom,""), "") -> € 102.26 | G117: =IFERROR(IF(LeningNietBetaald*LeningGoed,Rentebedrag,""), "") -> € 6.26 | H117: =IFERROR(IF(LeningNietBetaald*LeningGoed,Eindsaldo,""), "") -> € 1,264.33
B118: =IFERROR(IF(LeningNietBetaald*LeningGoed,NummerBetaling,""), "") -> 109 | C118: =IFERROR(IF(LeningNietBetaald*LeningGoed,Betaaldatum,""), "") -> 2028-06-08 | D118: =IFERROR(IF(LeningNietBetaald*LeningGoed,WaardeLening,""), "") -> € 1,264.33 | E118: =IFERROR(IF(LeningNietBetaald*LeningGoed,MaandelijkseBetaling,""), "") -> € 108.53 | F118: =IFERROR(IF(LeningNietBetaald*LeningGoed,Hoofdsom,""), "") -> € 102.73 | G118: =IFERROR(IF(LeningNietBetaald*LeningGoed,Rentebedrag,""), "") -> € 5.79 | H118: =IFERROR(IF(LeningNietBetaald*LeningGoed,Eindsaldo,""), "") -> € 1,161.60
B119: =IFERROR(IF(LeningNietBetaald*LeningGoed,NummerBetaling,""), "") -> 110 | C119: =IFERROR(IF(LeningNietBetaald*LeningGoed,Betaaldatum,""), "") -> 2028-07-08 | D119: =IFERROR(IF(LeningNietBetaald*LeningGoed,WaardeLening,""), "") -> € 1,161.60 | E119: =IFERROR(IF(LeningNietBetaald*LeningGoed,MaandelijkseBetaling,""), "") -> € 108.53 | F119: =IFERROR(IF(LeningNietBetaald*LeningGoed,Hoofdsom,""), "") -> € 103.20 | G119: =IFERROR(IF(LeningNietBetaald*LeningGoed,Rentebedrag,""), "") -> € 5.32 | H119: =IFERROR(IF(LeningNietBetaald*LeningGoed,Eindsaldo,""), "") -> € 1,058.40
B120: =IFERROR(IF(LeningNietBetaald*LeningGoed,NummerBetaling,""), "") -> 111 | C120: =IFERROR(IF(LeningNietBetaald*LeningGoed,Betaaldatum,""), "") -> 2028-08-08 | D120: =IFERROR(IF(LeningNietBetaald*LeningGoed,WaardeLening,""), "") -> € 1,058.40 | E120: =IFERROR(IF(LeningNietBetaald*LeningGoed,MaandelijkseBetaling,""), "") -> € 108.53 | F120: =IFERROR(IF(LeningNietBetaald*LeningGoed,Hoofdsom,""), "") -> € 103.68 | G120: =IFERROR(IF(LeningNietBetaald*LeningGoed,Rentebedrag,""), "") -> € 4.85 | H120: =IFERROR(IF(LeningNietBetaald*LeningGoed,Eindsaldo,""), "") -> € 954.72
B121: =IFERROR(IF(LeningNietBetaald*LeningGoed,NummerBetaling,""), "") -> 112 | C121: =IFERROR(IF(LeningNietBetaald*LeningGoed,Betaaldatum,""), "") -> 2028-09-08 | D121: =IFERROR(IF(LeningNietBetaald*LeningGoed,WaardeLening,""), "") -> € 954.72 | E121: =IFERROR(IF(LeningNietBetaald*LeningGoed,MaandelijkseBetaling,""), "") -> € 108.53 | F121: =IFERROR(IF(LeningNietBetaald*LeningGoed,Hoofdsom,""), "") -> € 104.15 | G121: =IFERROR(IF(LeningNietBetaald*LeningGoed,Rentebedrag,""), "") -> € 4.38 | H121: =IFERROR(IF(LeningNietBetaald*LeningGoed,Eindsaldo,""), "") -> € 850.57
B122: =IFERROR(IF(LeningNietBetaald*LeningGoed,NummerBetaling,""), "") -> 113 | C122: =IFERROR(IF(LeningNietBetaald*LeningGoed,Betaaldatum,""), "") -> 2028-10-08 | D122: =IFERROR(IF(LeningNietBetaald*LeningGoed,WaardeLening,""), "") -> € 850.57 | E122: =IFERROR(IF(LeningNietBetaald*LeningGoed,MaandelijkseBetaling,""), "") -> € 108.53 | F122: =IFERROR(IF(LeningNietBetaald*LeningGoed,Hoofdsom,""), "") -> € 104.63 | G122: =IFERROR(IF(LeningNietBetaald*LeningGoed,Rentebedrag,""), "") -> € 3.90 | H122: =IFERROR(IF(LeningNietBetaald*LeningGoed,Eindsaldo,""), "") -> € 745.95
B123: =IFERROR(IF(LeningNietBetaald*LeningGoed,NummerBetaling,""), "") -> 114 | C123: =IFERROR(IF(LeningNietBetaald*LeningGoed,Betaaldatum,""), "") -> 2028-11-08 | D123: =IFERROR(IF(LeningNietBetaald*LeningGoed,WaardeLening,""), "") -> € 745.95 | E123: =IFERROR(IF(LeningNietBetaald*LeningGoed,MaandelijkseBetaling,""), "") -> € 108.53 | F123: =IFERROR(IF(LeningNietBetaald*LeningGoed,Hoofdsom,""), "") -> € 105.11 | G123: =IFERROR(IF(LeningNietBetaald*LeningGoed,Rentebedrag,""), "") -> € 3.42 | H123: =IFERROR(IF(LeningNietBetaald*LeningGoed,Eindsaldo,""), "") -> € 640.84
B124: =IFERROR(IF(LeningNietBetaald*LeningGoed,NummerBetaling,""), "") -> 115 | C124: =IFERROR(IF(LeningNietBetaald*LeningGoed,Betaaldatum,""), "") -> 2028-12-08 | D124: =IFERROR(IF(LeningNietBetaald*LeningGoed,WaardeLening,""), "") -> € 640.84 | E124: =IFERROR(IF(LeningNietBetaald*LeningGoed,MaandelijkseBetaling,""), "") -> € 108.53 | F124: =IFERROR(IF(LeningNietBetaald*LeningGoed,Hoofdsom,""), "") -> € 105.59 | G124: =IFERROR(IF(LeningNietBetaald*LeningGoed,Rentebedrag,""), "") -> € 2.94 | H124: =IFERROR(IF(LeningNietBetaald*LeningGoed,Eindsaldo,""), "") -> € 535.25
B125: =IFERROR(IF(LeningNietBetaald*LeningGoed,NummerBetaling,""), "") -> 116 | C125: =IFERROR(IF(LeningNietBetaald*LeningGoed,Betaaldatum,""), "") -> 2029-01-08 | D125: =IFERROR(IF(LeningNietBetaald*LeningGoed,WaardeLening,""), "") -> € 535.25 | E125: =IFERROR(IF(LeningNietBetaald*LeningGoed,MaandelijkseBetaling,""), "") -> € 108.53 | F125: =IFERROR(IF(LeningNietBetaald*LeningGoed,Hoofdsom,""), "") -> € 106.07 | G125: =IFERROR(IF(LeningNietBetaald*LeningGoed,Rentebedrag,""), "") -> € 2.45 | H125: =IFERROR(IF(LeningNietBetaald*LeningGoed,Eindsaldo,""), "") -> € 429.18
B126: =IFERROR(IF(LeningNietBetaald*LeningGoed,NummerBetaling,""), "") -> 117 | C126: =IFERROR(IF(LeningNietBetaald*LeningGoed,Betaaldatum,""), "") -> 2029-02-08 | D126: =IFERROR(IF(LeningNietBetaald*LeningGoed,WaardeLening,""), "") -> € 429.18 | E126: =IFERROR(IF(LeningNietBetaald*LeningGoed,MaandelijkseBetaling,""), "") -> € 108.53 | F126: =IFERROR(IF(LeningNietBetaald*LeningGoed,Hoofdsom,""), "") -> € 106.56 | G126: =IFERROR(IF(LeningNietBetaald*LeningGoed,Rentebedrag,""), "") -> € 1.97 | H126: =IFERROR(IF(LeningNietBetaald*LeningGoed,Eindsaldo,""), "") -> € 322.62
B127: =IFERROR(IF(LeningNietBetaald*LeningGoed,NummerBetaling,""), "") -> 118 | C127: =IFERROR(IF(LeningNietBetaald*LeningGoed,Betaaldatum,""), "") -> 2029-03-08 | D127: =IFERROR(IF(LeningNietBetaald*LeningGoed,WaardeLening,""), "") -> € 322.62 | E127: =IFERROR(IF(LeningNietBetaald*LeningGoed,MaandelijkseBetaling,""), "") -> € 108.53 | F127: =IFERROR(IF(LeningNietBetaald*LeningGoed,Hoofdsom,""), "") -> € 107.05 | G127: =IFERROR(IF(LeningNietBetaald*LeningGoed,Rentebedrag,""), "") -> € 1.48 | H127: =IFERROR(IF(LeningNietBetaald*LeningGoed,Eindsaldo,""), "") -> € 215.57
B128: =IFERROR(IF(LeningNietBetaald*LeningGoed,NummerBetaling,""), "") -> 119 | C128: =IFERROR(IF(LeningNietBetaald*LeningGoed,Betaaldatum,""), "") -> 2029-04-08 | D128: =IFERROR(IF(LeningNietBetaald*LeningGoed,WaardeLening,""), "") -> € 215.57 | E128: =IFERROR(IF(LeningNietBetaald*LeningGoed,MaandelijkseBetaling,""), "") -> € 108.53 | F128: =IFERROR(IF(LeningNietBetaald*LeningGoed,Hoofdsom,""), "") -> € 107.54 | G128: =IFERROR(IF(LeningNietBetaald*LeningGoed,Rentebedrag,""), "") -> € 0.99 | H128: =IFERROR(IF(LeningNietBetaald*LeningGoed,Eindsaldo,""), "") -> € 108.03
B129: =IFERROR(IF(LeningNietBetaald*LeningGoed,NummerBetaling,""), "") -> 120 | C129: =IFERROR(IF(LeningNietBetaald*LeningGoed,Betaaldatum,""), "") -> 2029-05-08 | D129: =IFERROR(IF(LeningNietBetaald*LeningGoed,WaardeLening,""), "") -> € 108.03 | E129: =IFERROR(IF(LeningNietBetaald*LeningGoed,MaandelijkseBetaling,""), "") -> € 108.53 | F129: =IFERROR(IF(LeningNietBetaald*LeningGoed,Hoofdsom,""), "") -> € 108.03 | G129: =IFERROR(IF(LeningNietBetaald*LeningGoed,Rentebedrag,""), "") -> € 0.50 | H129: =IFERROR(IF(LeningNietBetaald*LeningGoed,Eindsaldo,""), "") -> -€ 0.00
B130: =IFERROR(IF(LeningNietBetaald*LeningGoed,NummerBetaling,""), "") ->  | C130: =IFERROR(IF(LeningNietBetaald*LeningGoed,Betaaldatum,""), "") ->  | D130: =IFERROR(IF(LeningNietBetaald*LeningGoed,WaardeLening,""), "") ->  | E130: =IFERROR(IF(LeningNietBetaald*LeningGoed,MaandelijkseBetaling,""), "") ->  | F130: =IFERROR(IF(LeningNietBetaald*LeningGoed,Hoofdsom,""), "") ->  | G130: =IFERROR(IF(LeningNietBetaald*LeningGoed,Rentebedrag,""), "") ->  | H130: =IFERROR(IF(LeningNietBetaald*LeningGoed,Eindsaldo,""), "") -> 
B131: =IFERROR(IF(LeningNietBetaald*LeningGoed,NummerBetaling,""), "") ->  | C131: =IFERROR(IF(LeningNietBetaald*LeningGoed,Betaaldatum,""), "") ->  | D131: =IFERROR(IF(LeningNietBetaald*LeningGoed,WaardeLening,""), "") ->  | E131: =IFERROR(IF(LeningNietBetaald*LeningGoed,MaandelijkseBetaling,""), "") ->  | F131: =IFERROR(IF(LeningNietBetaald*LeningGoed,Hoofdsom,""), "") ->  | G131: =IFERROR(IF(LeningNietBetaald*LeningGoed,Rentebedrag,""), "") ->  | H131: =IFERROR(IF(LeningNietBetaald*LeningGoed,Eindsaldo,""), "") -> 
B132: =IFERROR(IF(LeningNietBetaald*LeningGoed,NummerBetaling,""), "") ->  | C132: =IFERROR(IF(LeningNietBetaald*LeningGoed,Betaaldatum,""), "") ->  | D132: =IFERROR(IF(LeningNietBetaald*LeningGoed,WaardeLening,""), "") ->  | E132: =IFERROR(IF(LeningNietBetaald*LeningGoed,MaandelijkseBetaling,""), "") ->  | F132: =IFERROR(IF(LeningNietBetaald*LeningGoed,Hoofdsom,""), "") ->  | G132: =IFERROR(IF(LeningNietBetaald*LeningGoed,Rentebedrag,""), "") ->  | H132: =IFERROR(IF(LeningNietBetaald*LeningGoed,Eindsaldo,""), "") -> 
B133: =IFERROR(IF(LeningNietBetaald*LeningGoed,NummerBetaling,""), "") ->  | C133: =IFERROR(IF(LeningNietBetaald*LeningGoed,Betaaldatum,""), "") ->  | D133: =IFERROR(IF(LeningNietBetaald*LeningGoed,WaardeLening,""), "") ->  | E133: =IFERROR(IF(LeningNietBetaald*LeningGoed,MaandelijkseBetaling,""), "") ->  | F133: =IFERROR(IF(LeningNietBetaald*LeningGoed,Hoofdsom,""), "") ->  | G133: =IFERROR(IF(LeningNietBetaald*LeningGoed,Rentebedrag,""), "") ->  | H133: =IFERROR(IF(LeningNietBetaald*LeningGoed,Eindsaldo,""), "") -> 
B134: =IFERROR(IF(LeningNietBetaald*LeningGoed,NummerBetaling,""), "") ->  | C134: =IFERROR(IF(LeningNietBetaald*LeningGoed,Betaaldatum,""), "") ->  | D134: =IFERROR(IF(LeningNietBetaald*LeningGoed,WaardeLening,""), "") ->  | E134: =IFERROR(IF(LeningNietBetaald*LeningGoed,MaandelijkseBetaling,""), "") ->  | F134: =IFERROR(IF(LeningNietBetaald*LeningGoed,Hoofdsom,""), "") ->  | G134: =IFERROR(IF(LeningNietBetaald*LeningGoed,Rentebedrag,""), "") ->  | H134: =IFERROR(IF(LeningNietBetaald*LeningGoed,Eindsaldo,""), "") -> 
B135: =IFERROR(IF(LeningNietBetaald*LeningGoed,NummerBetaling,""), "") ->  | C135: =IFERROR(IF(LeningNietBetaald*LeningGoed,Betaaldatum,""), "") ->  | D135: =IFERROR(IF(LeningNietBetaald*LeningGoed,WaardeLening,""), "") ->  | E135: =IFERROR(IF(LeningNietBetaald*LeningGoed,MaandelijkseBetaling,""), "") ->  | F135: =IFERROR(IF(LeningNietBetaald*LeningGoed,Hoofdsom,""), "") ->  | G135: =IFERROR(IF(LeningNietBetaald*LeningGoed,Rentebedrag,""), "") ->  | H135: =IFERROR(IF(LeningNietBetaald*LeningGoed,Eindsaldo,""), "") -> 
B136: =IFERROR(IF(LeningNietBetaald*LeningGoed,NummerBetaling,""), "") ->  | C136: =IFERROR(IF(LeningNietBetaald*LeningGoed,Betaaldatum,""), "") ->  | D136: =IFERROR(IF(LeningNietBetaald*LeningGoed,WaardeLening,""), "") ->  | E136: =IFERROR(IF(LeningNietBetaald*LeningGoed,MaandelijkseBetaling,""), "") ->  | F136: =IFERROR(IF(LeningNietBetaald*LeningGoed,Hoofdsom,""), "") ->  | G136: =IFERROR(IF(LeningNietBetaald*LeningGoed,Rentebedrag,""), "") ->  | H136: =IFERROR(IF(LeningNietBetaald*LeningGoed,Eindsaldo,""), "") -> 
B137: =IFERROR(IF(LeningNietBetaald*LeningGoed,NummerBetaling,""), "") ->  | C137: =IFERROR(IF(LeningNietBetaald*LeningGoed,Betaaldatum,""), "") ->  | D137: =IFERROR(IF(LeningNietBetaald*LeningGoed,WaardeLening,""), "") ->  | E137: =IFERROR(IF(LeningNietBetaald*LeningGoed,MaandelijkseBetaling,""), "") ->  | F137: =IFERROR(IF(LeningNietBetaald*LeningGoed,Hoofdsom,""), "") ->  | G137: =IFERROR(IF(LeningNietBetaald*LeningGoed,Rentebedrag,""), "") ->  | H137: =IFERROR(IF(LeningNietBetaald*LeningGoed,Eindsaldo,""), "") -> 
B138: =IFERROR(IF(LeningNietBetaald*LeningGoed,NummerBetaling,""), "") ->  | C138: =IFERROR(IF(LeningNietBetaald*LeningGoed,Betaaldatum,""), "") ->  | D138: =IFERROR(IF(LeningNietBetaald*LeningGoed,WaardeLening,""), "") ->  | E138: =IFERROR(IF(LeningNietBetaald*LeningGoed,MaandelijkseBetaling,""), "") ->  | F138: =IFERROR(IF(LeningNietBetaald*LeningGoed,Hoofdsom,""), "") ->  | G138: =IFERROR(IF(LeningNietBetaald*LeningGoed,Rentebedrag,""), "") ->  | H138: =IFERROR(IF(LeningNietBetaald*LeningGoed,Eindsaldo,""), "") -> 
B139: =IFERROR(IF(LeningNietBetaald*LeningGoed,NummerBetaling,""), "") ->  | C139: =IFERROR(IF(LeningNietBetaald*LeningGoed,Betaaldatum,""), "") ->  | D139: =IFERROR(IF(LeningNietBetaald*LeningGoed,WaardeLening,""), "") ->  | E139: =IFERROR(IF(LeningNietBetaald*LeningGoed,MaandelijkseBetaling,""), "") ->  | F139: =IFERROR(IF(LeningNietBetaald*LeningGoed,Hoofdsom,""), "") ->  | G139: =IFERROR(IF(LeningNietBetaald*LeningGoed,Rentebedrag,""), "") ->  | H139: =IFERROR(IF(LeningNietBetaald*LeningGoed,Eindsaldo,""), "") -> 
B140: =IFERROR(IF(LeningNietBetaald*LeningGoed,NummerBetaling,""), "") ->  | C140: =IFERROR(IF(LeningNietBetaald*LeningGoed,Betaaldatum,""), "") ->  | D140: =IFERROR(IF(LeningNietBetaald*LeningGoed,WaardeLening,""), "") ->  | E140: =IFERROR(IF(LeningNietBetaald*LeningGoed,MaandelijkseBetaling,""), "") ->  | F140: =IFERROR(IF(LeningNietBetaald*LeningGoed,Hoofdsom,""), "") ->  | G140: =IFERROR(IF(LeningNietBetaald*LeningGoed,Rentebedrag,""), "") ->  | H140: =IFERROR(IF(LeningNietBetaald*LeningGoed,Eindsaldo,""), "") -> 
B141: =IFERROR(IF(LeningNietBetaald*LeningGoed,NummerBetaling,""), "") ->  | C141: =IFERROR(IF(LeningNietBetaald*LeningGoed,Betaaldatum,""), "") ->  | D141: =IFERROR(IF(LeningNietBetaald*LeningGoed,WaardeLening,""), "") ->  | E141: =IFERROR(IF(LeningNietBetaald*LeningGoed,MaandelijkseBetaling,""), "") ->  | F141: =IFERROR(IF(LeningNietBetaald*LeningGoed,Hoofdsom,""), "") ->  | G141: =IFERROR(IF(LeningNietBetaald*LeningGoed,Rentebedrag,""), "") ->  | H141: =IFERROR(IF(LeningNietBetaald*LeningGoed,Eindsaldo,""), "") -> 
B142: =IFERROR(IF(LeningNietBetaald*LeningGoed,NummerBetaling,""), "") ->  | C142: =IFERROR(IF(LeningNietBetaald*LeningGoed,Betaaldatum,""), "") ->  | D142: =IFERROR(IF(LeningNietBetaald*LeningGoed,WaardeLening,""), "") ->  | E142: =IFERROR(IF(LeningNietBetaald*LeningGoed,MaandelijkseBetaling,""), "") ->  | F142: =IFERROR(IF(LeningNietBetaald*LeningGoed,Hoofdsom,""), "") ->  | G142: =IFERROR(IF(LeningNietBetaald*LeningGoed,Rentebedrag,""), "") ->  | H142: =IFERROR(IF(LeningNietBetaald*LeningGoed,Eindsaldo,""), "") -> 
B143: =IFERROR(IF(LeningNietBetaald*LeningGoed,NummerBetaling,""), "") ->  | C143: =IFERROR(IF(LeningNietBetaald*LeningGoed,Betaaldatum,""), "") ->  | D143: =IFERROR(IF(LeningNietBetaald*LeningGoed,WaardeLening,""), "") ->  | E143: =IFERROR(IF(LeningNietBetaald*LeningGoed,MaandelijkseBetaling,""), "") ->  | F143: =IFERROR(IF(LeningNietBetaald*LeningGoed,Hoofdsom,""), "") ->  | G143: =IFERROR(IF(LeningNietBetaald*LeningGoed,Rentebedrag,""), "") ->  | H143: =IFERROR(IF(LeningNietBetaald*LeningGoed,Eindsaldo,""), "") -> 
B144: =IFERROR(IF(LeningNietBetaald*LeningGoed,NummerBetaling,""), "") ->  | C144: =IFERROR(IF(LeningNietBetaald*LeningGoed,Betaaldatum,""), "") ->  | D144: =IFERROR(IF(LeningNietBetaald*LeningGoed,WaardeLening,""), "") ->  | E144: =IFERROR(IF(LeningNietBetaald*LeningGoed,MaandelijkseBetaling,""), "") ->  | F144: =IFERROR(IF(LeningNietBetaald*LeningGoed,Hoofdsom,""), "") ->  | G144: =IFERROR(IF(LeningNietBetaald*LeningGoed,Rentebedrag,""), "") ->  | H144: =IFERROR(IF(LeningNietBetaald*LeningGoed,Eindsaldo,""), "") -> 
B145: =IFERROR(IF(LeningNietBetaald*LeningGoed,NummerBetaling,""), "") ->  | C145: =IFERROR(IF(LeningNietBetaald*LeningGoed,Betaaldatum,""), "") ->  | D145: =IFERROR(IF(LeningNietBetaald*LeningGoed,WaardeLening,""), "") ->  | E145: =IFERROR(IF(LeningNietBetaald*LeningGoed,MaandelijkseBetaling,""), "") ->  | F145: =IFERROR(IF(LeningNietBetaald*LeningGoed,Hoofdsom,""), "") ->  | G145: =IFERROR(IF(LeningNietBetaald*LeningGoed,Rentebedrag,""), "") ->  | H145: =IFERROR(IF(LeningNietBetaald*LeningGoed,Eindsaldo,""), "") -> 
B146: =IFERROR(IF(LeningNietBetaald*LeningGoed,NummerBetaling,""), "") ->  | C146: =IFERROR(IF(LeningNietBetaald*LeningGoed,Betaaldatum,""), "") ->  | D146: =IFERROR(IF(LeningNietBetaald*LeningGoed,WaardeLening,""), "") ->  | E146: =IFERROR(IF(LeningNietBetaald*LeningGoed,MaandelijkseBetaling,""), "") ->  | F146: =IFERROR(IF(LeningNietBetaald*LeningGoed,Hoofdsom,""), "") ->  | G146: =IFERROR(IF(LeningNietBetaald*LeningGoed,Rentebedrag,""), "") ->  | H146: =IFERROR(IF(LeningNietBetaald*LeningGoed,Eindsaldo,""), "") -> 
B147: =IFERROR(IF(LeningNietBetaald*LeningGoed,NummerBetaling,""), "") ->  | C147: =IFERROR(IF(LeningNietBetaald*LeningGoed,Betaaldatum,""), "") ->  | D147: =IFERROR(IF(LeningNietBetaald*LeningGoed,WaardeLening,""), "") ->  | E147: =IFERROR(IF(LeningNietBetaald*LeningGoed,MaandelijkseBetaling,""), "") ->  | F147: =IFERROR(IF(LeningNietBetaald*LeningGoed,Hoofdsom,""), "") ->  | G147: =IFERROR(IF(LeningNietBetaald*LeningGoed,Rentebedrag,""), "") ->  | H147: =IFERROR(IF(LeningNietBetaald*LeningGoed,Eindsaldo,""), "") -> 
B148: =IFERROR(IF(LeningNietBetaald*LeningGoed,NummerBetaling,""), "") ->  | C148: =IFERROR(IF(LeningNietBetaald*LeningGoed,Betaaldatum,""), "") ->  | D148: =IFERROR(IF(LeningNietBetaald*LeningGoed,WaardeLening,""), "") ->  | E148: =IFERROR(IF(LeningNietBetaald*LeningGoed,MaandelijkseBetaling,""), "") ->  | F148: =IFERROR(IF(LeningNietBetaald*LeningGoed,Hoofdsom,""), "") ->  | G148: =IFERROR(IF(LeningNietBetaald*LeningGoed,Rentebedrag,""), "") ->  | H148: =IFERROR(IF(LeningNietBetaald*LeningGoed,Eindsaldo,""), "") -> 
B149: =IFERROR(IF(LeningNietBetaald*LeningGoed,NummerBetaling,""), "") ->  | C149: =IFERROR(IF(LeningNietBetaald*LeningGoed,Betaaldatum,""), "") ->  | D149: =IFERROR(IF(LeningNietBetaald*LeningGoed,WaardeLening,""), "") ->  | E149: =IFERROR(IF(LeningNietBetaald*LeningGoed,MaandelijkseBetaling,""), "") ->  | F149: =IFERROR(IF(LeningNietBetaald*LeningGoed,Hoofdsom,""), "") ->  | G149: =IFERROR(IF(LeningNietBetaald*LeningGoed,Rentebedrag,""), "") ->  | H149: =IFERROR(IF(LeningNietBetaald*LeningGoed,Eindsaldo,""), "") -> 
B150: =IFERROR(IF(LeningNietBetaald*LeningGoed,NummerBetaling,""), "") ->  | C150: =IFERROR(IF(LeningNietBetaald*LeningGoed,Betaaldatum,""), "") ->  | D150: =IFERROR(IF(LeningNietBetaald*LeningGoed,WaardeLening,""), "") ->  | E150: =IFERROR(IF(LeningNietBetaald*LeningGoed,MaandelijkseBetaling,""), "") ->  | F150: =IFERROR(IF(LeningNietBetaald*LeningGoed,Hoofdsom,""), "") ->  | G150: =IFERROR(IF(LeningNietBetaald*LeningGoed,Rentebedrag,""), "") ->  | H150: =IFERROR(IF(LeningNietBetaald*LeningGoed,Eindsaldo,""), "") -> 
B151: =IFERROR(IF(LeningNietBetaald*LeningGoed,NummerBetaling,""), "") ->  | C151: =IFERROR(IF(LeningNietBetaald*LeningGoed,Betaaldatum,""), "") ->  | D151: =IFERROR(IF(LeningNietBetaald*LeningGoed,WaardeLening,""), "") ->  | E151: =IFERROR(IF(LeningNietBetaald*LeningGoed,MaandelijkseBetaling,""), "") ->  | F151: =IFERROR(IF(LeningNietBetaald*LeningGoed,Hoofdsom,""), "") ->  | G151: =IFERROR(IF(LeningNietBetaald*LeningGoed,Rentebedrag,""), "") ->  | H151: =IFERROR(IF(LeningNietBetaald*LeningGoed,Eindsaldo,""), "") -> 
B152: =IFERROR(IF(LeningNietBetaald*LeningGoed,NummerBetaling,""), "") ->  | C152: =IFERROR(IF(LeningNietBetaald*LeningGoed,Betaaldatum,""), "") ->  | D152: =IFERROR(IF(LeningNietBetaald*LeningGoed,WaardeLening,""), "") ->  | E152: =IFERROR(IF(LeningNietBetaald*LeningGoed,MaandelijkseBetaling,""), "") ->  | F152: =IFERROR(IF(LeningNietBetaald*LeningGoed,Hoofdsom,""), "") ->  | G152: =IFERROR(IF(LeningNietBetaald*LeningGoed,Rentebedrag,""), "") ->  | H152: =IFERROR(IF(LeningNietBetaald*LeningGoed,Eindsaldo,""), "") -> 
B153: =IFERROR(IF(LeningNietBetaald*LeningGoed,NummerBetaling,""), "") ->  | C153: =IFERROR(IF(LeningNietBetaald*LeningGoed,Betaaldatum,""), "") ->  | D153: =IFERROR(IF(LeningNietBetaald*LeningGoed,WaardeLening,""), "") ->  | E153: =IFERROR(IF(LeningNietBetaald*LeningGoed,MaandelijkseBetaling,""), "") ->  | F153: =IFERROR(IF(LeningNietBetaald*LeningGoed,Hoofdsom,""), "") ->  | G153: =IFERROR(IF(LeningNietBetaald*LeningGoed,Rentebedrag,""), "") ->  | H153: =IFERROR(IF(LeningNietBetaald*LeningGoed,Eindsaldo,""), "") -> 
B154: =IFERROR(IF(LeningNietBetaald*LeningGoed,NummerBetaling,""), "") ->  | C154: =IFERROR(IF(LeningNietBetaald*LeningGoed,Betaaldatum,""), "") ->  | D154: =IFERROR(IF(LeningNietBetaald*LeningGoed,WaardeLening,""), "") ->  | E154: =IFERROR(IF(LeningNietBetaald*LeningGoed,MaandelijkseBetaling,""), "") ->  | F154: =IFERROR(IF(LeningNietBetaald*LeningGoed,Hoofdsom,""), "") ->  | G154: =IFERROR(IF(LeningNietBetaald*LeningGoed,Rentebedrag,""), "") ->  | H154: =IFERROR(IF(LeningNietBetaald*LeningGoed,Eindsaldo,""), "") -> 
B155: =IFERROR(IF(LeningNietBetaald*LeningGoed,NummerBetaling,""), "") ->  | C155: =IFERROR(IF(LeningNietBetaald*LeningGoed,Betaaldatum,""), "") ->  | D155: =IFERROR(IF(LeningNietBetaald*LeningGoed,WaardeLening,""), "") ->  | E155: =IFERROR(IF(LeningNietBetaald*LeningGoed,MaandelijkseBetaling,""), "") ->  | F155: =IFERROR(IF(LeningNietBetaald*LeningGoed,Hoofdsom,""), "") ->  | G155: =IFERROR(IF(LeningNietBetaald*LeningGoed,Rentebedrag,""), "") ->  | H155: =IFERROR(IF(LeningNietBetaald*LeningGoed,Eindsaldo,""), "") -> 
B156: =IFERROR(IF(LeningNietBetaald*LeningGoed,NummerBetaling,""), "") ->  | C156: =IFERROR(IF(LeningNietBetaald*LeningGoed,Betaaldatum,""), "") ->  | D156: =IFERROR(IF(LeningNietBetaald*LeningGoed,WaardeLening,""), "") ->  | E156: =IFERROR(IF(LeningNietBetaald*LeningGoed,MaandelijkseBetaling,""), "") ->  | F156: =IFERROR(IF(LeningNietBetaald*LeningGoed,Hoofdsom,""), "") ->  | G156: =IFERROR(IF(LeningNietBetaald*LeningGoed,Rentebedrag,""), "") ->  | H156: =IFERROR(IF(LeningNietBetaald*LeningGoed,Eindsaldo,""), "") -> 
B157: =IFERROR(IF(LeningNietBetaald*LeningGoed,NummerBetaling,""), "") ->  | C157: =IFERROR(IF(LeningNietBetaald*LeningGoed,Betaaldatum,""), "") ->  | D157: =IFERROR(IF(LeningNietBetaald*LeningGoed,WaardeLening,""), "") ->  | E157: =IFERROR(IF(LeningNietBetaald*LeningGoed,MaandelijkseBetaling,""), "") ->  | F157: =IFERROR(IF(LeningNietBetaald*LeningGoed,Hoofdsom,""), "") ->  | G157: =IFERROR(IF(LeningNietBetaald*LeningGoed,Rentebedrag,""), "") ->  | H157: =IFERROR(IF(LeningNietBetaald*LeningGoed,Eindsaldo,""), "") -> 
B158: =IFERROR(IF(LeningNietBetaald*LeningGoed,NummerBetaling,""), "") ->  | C158: =IFERROR(IF(LeningNietBetaald*LeningGoed,Betaaldatum,""), "") ->  | D158: =IFERROR(IF(LeningNietBetaald*LeningGoed,WaardeLening,""), "") ->  | E158: =IFERROR(IF(LeningNietBetaald*LeningGoed,MaandelijkseBetaling,""), "") ->  | F158: =IFERROR(IF(LeningNietBetaald*LeningGoed,Hoofdsom,""), "") ->  | G158: =IFERROR(IF(LeningNietBetaald*LeningGoed,Rentebedrag,""), "") ->  | H158: =IFERROR(IF(LeningNietBetaald*LeningGoed,Eindsaldo,""), "") -> 
B159: =IFERROR(IF(LeningNietBetaald*LeningGoed,NummerBetaling,""), "") ->  | C159: =IFERROR(IF(LeningNietBetaald*LeningGoed,Betaaldatum,""), "") ->  | D159: =IFERROR(IF(LeningNietBetaald*LeningGoed,WaardeLening,""), "") ->  | E159: =IFERROR(IF(LeningNietBetaald*LeningGoed,MaandelijkseBetaling,""), "") ->  | F159: =IFERROR(IF(LeningNietBetaald*LeningGoed,Hoofdsom,""), "") ->  | G159: =IFERROR(IF(LeningNietBetaald*LeningGoed,Rentebedrag,""), "") ->  | H159: =IFERROR(IF(LeningNietBetaald*LeningGoed,Eindsaldo,""), "") -> 
B160: =IFERROR(IF(LeningNietBetaald*LeningGoed,NummerBetaling,""), "") ->  | C160: =IFERROR(IF(LeningNietBetaald*LeningGoed,Betaaldatum,""), "") ->  | D160: =IFERROR(IF(LeningNietBetaald*LeningGoed,WaardeLening,""), "") ->  | E160: =IFERROR(IF(LeningNietBetaald*LeningGoed,MaandelijkseBetaling,""), "") ->  | F160: =IFERROR(IF(LeningNietBetaald*LeningGoed,Hoofdsom,""), "") ->  | G160: =IFERROR(IF(LeningNietBetaald*LeningGoed,Rentebedrag,""), "") ->  | H160: =IFERROR(IF(LeningNietBetaald*LeningGoed,Eindsaldo,""), "") -> 
B161: =IFERROR(IF(LeningNietBetaald*LeningGoed,NummerBetaling,""), "") ->  | C161: =IFERROR(IF(LeningNietBetaald*LeningGoed,Betaaldatum,""), "") ->  | D161: =IFERROR(IF(LeningNietBetaald*LeningGoed,WaardeLening,""), "") ->  | E161: =IFERROR(IF(LeningNietBetaald*LeningGoed,MaandelijkseBetaling,""), "") ->  | F161: =IFERROR(IF(LeningNietBetaald*LeningGoed,Hoofdsom,""), "") ->  | G161: =IFERROR(IF(LeningNietBetaald*LeningGoed,Rentebedrag,""), "") ->  | H161: =IFERROR(IF(LeningNietBetaald*LeningGoed,Eindsaldo,""), "") -> 
B162: =IFERROR(IF(LeningNietBetaald*LeningGoed,NummerBetaling,""), "") ->  | C162: =IFERROR(IF(LeningNietBetaald*LeningGoed,Betaaldatum,""), "") ->  | D162: =IFERROR(IF(LeningNietBetaald*LeningGoed,WaardeLening,""), "") ->  | E162: =IFERROR(IF(LeningNietBetaald*LeningGoed,MaandelijkseBetaling,""), "") ->  | F162: =IFERROR(IF(LeningNietBetaald*LeningGoed,Hoofdsom,""), "") ->  | G162: =IFERROR(IF(LeningNietBetaald*LeningGoed,Rentebedrag,""), "") ->  | H162: =IFERROR(IF(LeningNietBetaald*LeningGoed,Eindsaldo,""), "") -> 
B163: =IFERROR(IF(LeningNietBetaald*LeningGoed,NummerBetaling,""), "") ->  | C163: =IFERROR(IF(LeningNietBetaald*LeningGoed,Betaaldatum,""), "") ->  | D163: =IFERROR(IF(LeningNietBetaald*LeningGoed,WaardeLening,""), "") ->  | E163: =IFERROR(IF(LeningNietBetaald*LeningGoed,MaandelijkseBetaling,""), "") ->  | F163: =IFERROR(IF(LeningNietBetaald*LeningGoed,Hoofdsom,""), "") ->  | G163: =IFERROR(IF(LeningNietBetaald*LeningGoed,Rentebedrag,""), "") ->  | H163: =IFERROR(IF(LeningNietBetaald*LeningGoed,Eindsaldo,""), "") -> 
B164: =IFERROR(IF(LeningNietBetaald*LeningGoed,NummerBetaling,""), "") ->  | C164: =IFERROR(IF(LeningNietBetaald*LeningGoed,Betaaldatum,""), "") ->  | D164: =IFERROR(IF(LeningNietBetaald*LeningGoed,WaardeLening,""), "") ->  | E164: =IFERROR(IF(LeningNietBetaald*LeningGoed,MaandelijkseBetaling,""), "") ->  | F164: =IFERROR(IF(LeningNietBetaald*LeningGoed,Hoofdsom,""), "") ->  | G164: =IFERROR(IF(LeningNietBetaald*LeningGoed,Rentebedrag,""), "") ->  | H164: =IFERROR(IF(LeningNietBetaald*LeningGoed,Eindsaldo,""), "") -> 
B165: =IFERROR(IF(LeningNietBetaald*LeningGoed,NummerBetaling,""), "") ->  | C165: =IFERROR(IF(LeningNietBetaald*LeningGoed,Betaaldatum,""), "") ->  | D165: =IFERROR(IF(LeningNietBetaald*LeningGoed,WaardeLening,""), "") ->  | E165: =IFERROR(IF(LeningNietBetaald*LeningGoed,MaandelijkseBetaling,""), "") ->  | F165: =IFERROR(IF(LeningNietBetaald*LeningGoed,Hoofdsom,""), "") ->  | G165: =IFERROR(IF(LeningNietBetaald*LeningGoed,Rentebedrag,""), "") ->  | H165: =IFERROR(IF(LeningNietBetaald*LeningGoed,Eindsaldo,""), "") -> 
B166: =IFERROR(IF(LeningNietBetaald*LeningGoed,NummerBetaling,""), "") ->  | C166: =IFERROR(IF(LeningNietBetaald*LeningGoed,Betaaldatum,""), "") ->  | D166: =IFERROR(IF(LeningNietBetaald*LeningGoed,WaardeLening,""), "") ->  | E166: =IFERROR(IF(LeningNietBetaald*LeningGoed,MaandelijkseBetaling,""), "") ->  | F166: =IFERROR(IF(LeningNietBetaald*LeningGoed,Hoofdsom,""), "") ->  | G166: =IFERROR(IF(LeningNietBetaald*LeningGoed,Rentebedrag,""), "") ->  | H166: =IFERROR(IF(LeningNietBetaald*LeningGoed,Eindsaldo,""), "") -> 
B167: =IFERROR(IF(LeningNietBetaald*LeningGoed,NummerBetaling,""), "") ->  | C167: =IFERROR(IF(LeningNietBetaald*LeningGoed,Betaaldatum,""), "") ->  | D167: =IFERROR(IF(LeningNietBetaald*LeningGoed,WaardeLening,""), "") ->  | E167: =IFERROR(IF(LeningNietBetaald*LeningGoed,MaandelijkseBetaling,""), "") ->  | F167: =IFERROR(IF(LeningNietBetaald*LeningGoed,Hoofdsom,""), "") ->  | G167: =IFERROR(IF(LeningNietBetaald*LeningGoed,Rentebedrag,""), "") ->  | H167: =IFERROR(IF(LeningNietBetaald*LeningGoed,Eindsaldo,""), "") -> 
B168: =IFERROR(IF(LeningNietBetaald*LeningGoed,NummerBetaling,""), "") ->  | C168: =IFERROR(IF(LeningNietBetaald*LeningGoed,Betaaldatum,""), "") ->  | D168: =IFERROR(IF(LeningNietBetaald*LeningGoed,WaardeLening,""), "") ->  | E168: =IFERROR(IF(LeningNietBetaald*LeningGoed,MaandelijkseBetaling,""), "") ->  | F168: =IFERROR(IF(LeningNietBetaald*LeningGoed,Hoofdsom,""), "") ->  | G168: =IFERROR(IF(LeningNietBetaald*LeningGoed,Rentebedrag,""), "") ->  | H168: =IFERROR(IF(LeningNietBetaald*LeningGoed,Eindsaldo,""), "") -> 
B169: =IFERROR(IF(LeningNietBetaald*LeningGoed,NummerBetaling,""), "") ->  | C169: =IFERROR(IF(LeningNietBetaald*LeningGoed,Betaaldatum,""), "") ->  | D169: =IFERROR(IF(LeningNietBetaald*LeningGoed,WaardeLening,""), "") ->  | E169: =IFERROR(IF(LeningNietBetaald*LeningGoed,MaandelijkseBetaling,""), "") ->  | F169: =IFERROR(IF(LeningNietBetaald*LeningGoed,Hoofdsom,""), "") ->  | G169: =IFERROR(IF(LeningNietBetaald*LeningGoed,Rentebedrag,""), "") ->  | H169: =IFERROR(IF(LeningNietBetaald*LeningGoed,Eindsaldo,""), "") -> 
B170: =IFERROR(IF(LeningNietBetaald*LeningGoed,NummerBetaling,""), "") ->  | C170: =IFERROR(IF(LeningNietBetaald*LeningGoed,Betaaldatum,""), "") ->  | D170: =IFERROR(IF(LeningNietBetaald*LeningGoed,WaardeLening,""), "") ->  | E170: =IFERROR(IF(LeningNietBetaald*LeningGoed,MaandelijkseBetaling,""), "") ->  | F170: =IFERROR(IF(LeningNietBetaald*LeningGoed,Hoofdsom,""), "") ->  | G170: =IFERROR(IF(LeningNietBetaald*LeningGoed,Rentebedrag,""), "") ->  | H170: =IFERROR(IF(LeningNietBetaald*LeningGoed,Eindsaldo,""), "") -> 
B171: =IFERROR(IF(LeningNietBetaald*LeningGoed,NummerBetaling,""), "") ->  | C171: =IFERROR(IF(LeningNietBetaald*LeningGoed,Betaaldatum,""), "") ->  | D171: =IFERROR(IF(LeningNietBetaald*LeningGoed,WaardeLening,""), "") ->  | E171: =IFERROR(IF(LeningNietBetaald*LeningGoed,MaandelijkseBetaling,""), "") ->  | F171: =IFERROR(IF(LeningNietBetaald*LeningGoed,Hoofdsom,""), "") ->  | G171: =IFERROR(IF(LeningNietBetaald*LeningGoed,Rentebedrag,""), "") ->  | H171: =IFERROR(IF(LeningNietBetaald*LeningGoed,Eindsaldo,""), "") -> 
B172: =IFERROR(IF(LeningNietBetaald*LeningGoed,NummerBetaling,""), "") ->  | C172: =IFERROR(IF(LeningNietBetaald*LeningGoed,Betaaldatum,""), "") ->  | D172: =IFERROR(IF(LeningNietBetaald*LeningGoed,WaardeLening,""), "") ->  | E172: =IFERROR(IF(LeningNietBetaald*LeningGoed,MaandelijkseBetaling,""), "") ->  | F172: =IFERROR(IF(LeningNietBetaald*LeningGoed,Hoofdsom,""), "") ->  | G172: =IFERROR(IF(LeningNietBetaald*LeningGoed,Rentebedrag,""), "") ->  | H172: =IFERROR(IF(LeningNietBetaald*LeningGoed,Eindsaldo,""), "") -> 
B173: =IFERROR(IF(LeningNietBetaald*LeningGoed,NummerBetaling,""), "") ->  | C173: =IFERROR(IF(LeningNietBetaald*LeningGoed,Betaaldatum,""), "") ->  | D173: =IFERROR(IF(LeningNietBetaald*LeningGoed,WaardeLening,""), "") ->  | E173: =IFERROR(IF(LeningNietBetaald*LeningGoed,MaandelijkseBetaling,""), "") ->  | F173: =IFERROR(IF(LeningNietBetaald*LeningGoed,Hoofdsom,""), "") ->  | G173: =IFERROR(IF(LeningNietBetaald*LeningGoed,Rentebedrag,""), "") ->  | H173: =IFERROR(IF(LeningNietBetaald*LeningGoed,Eindsaldo,""), "") -> 
B174: =IFERROR(IF(LeningNietBetaald*LeningGoed,NummerBetaling,""), "") ->  | C174: =IFERROR(IF(LeningNietBetaald*LeningGoed,Betaaldatum,""), "") ->  | D174: =IFERROR(IF(LeningNietBetaald*LeningGoed,WaardeLening,""), "") ->  | E174: =IFERROR(IF(LeningNietBetaald*LeningGoed,MaandelijkseBetaling,""), "") ->  | F174: =IFERROR(IF(LeningNietBetaald*LeningGoed,Hoofdsom,""), "") ->  | G174: =IFERROR(IF(LeningNietBetaald*LeningGoed,Rentebedrag,""), "") ->  | H174: =IFERROR(IF(LeningNietBetaald*LeningGoed,Eindsaldo,""), "") -> 
B175: =IFERROR(IF(LeningNietBetaald*LeningGoed,NummerBetaling,""), "") ->  | C175: =IFERROR(IF(LeningNietBetaald*LeningGoed,Betaaldatum,""), "") ->  | D175: =IFERROR(IF(LeningNietBetaald*LeningGoed,WaardeLening,""), "") ->  | E175: =IFERROR(IF(LeningNietBetaald*LeningGoed,MaandelijkseBetaling,""), "") ->  | F175: =IFERROR(IF(LeningNietBetaald*LeningGoed,Hoofdsom,""), "") ->  | G175: =IFERROR(IF(LeningNietBetaald*LeningGoed,Rentebedrag,""), "") ->  | H175: =IFERROR(IF(LeningNietBetaald*LeningGoed,Eindsaldo,""), "") -> 
B176: =IFERROR(IF(LeningNietBetaald*LeningGoed,NummerBetaling,""), "") ->  | C176: =IFERROR(IF(LeningNietBetaald*LeningGoed,Betaaldatum,""), "") ->  | D176: =IFERROR(IF(LeningNietBetaald*LeningGoed,WaardeLening,""), "") ->  | E176: =IFERROR(IF(LeningNietBetaald*LeningGoed,MaandelijkseBetaling,""), "") ->  | F176: =IFERROR(IF(LeningNietBetaald*LeningGoed,Hoofdsom,""), "") ->  | G176: =IFERROR(IF(LeningNietBetaald*LeningGoed,Rentebedrag,""), "") ->  | H176: =IFERROR(IF(LeningNietBetaald*LeningGoed,Eindsaldo,""), "") -> 
B177: =IFERROR(IF(LeningNietBetaald*LeningGoed,NummerBetaling,""), "") ->  | C177: =IFERROR(IF(LeningNietBetaald*LeningGoed,Betaaldatum,""), "") ->  | D177: =IFERROR(IF(LeningNietBetaald*LeningGoed,WaardeLening,""), "") ->  | E177: =IFERROR(IF(LeningNietBetaald*LeningGoed,MaandelijkseBetaling,""), "") ->  | F177: =IFERROR(IF(LeningNietBetaald*LeningGoed,Hoofdsom,""), "") ->  | G177: =IFERROR(IF(LeningNietBetaald*LeningGoed,Rentebedrag,""), "") ->  | H177: =IFERROR(IF(LeningNietBetaald*LeningGoed,Eindsaldo,""), "") -> 
B178: =IFERROR(IF(LeningNietBetaald*LeningGoed,NummerBetaling,""), "") ->  | C178: =IFERROR(IF(LeningNietBetaald*LeningGoed,Betaaldatum,""), "") ->  | D178: =IFERROR(IF(LeningNietBetaald*LeningGoed,WaardeLening,""), "") ->  | E178: =IFERROR(IF(LeningNietBetaald*LeningGoed,MaandelijkseBetaling,""), "") ->  | F178: =IFERROR(IF(LeningNietBetaald*LeningGoed,Hoofdsom,""), "") ->  | G178: =IFERROR(IF(LeningNietBetaald*LeningGoed,Rentebedrag,""), "") ->  | H178: =IFERROR(IF(LeningNietBetaald*LeningGoed,Eindsaldo,""), "") -> 
B179: =IFERROR(IF(LeningNietBetaald*LeningGoed,NummerBetaling,""), "") ->  | C179: =IFERROR(IF(LeningNietBetaald*LeningGoed,Betaaldatum,""), "") ->  | D179: =IFERROR(IF(LeningNietBetaald*LeningGoed,WaardeLening,""), "") ->  | E179: =IFERROR(IF(LeningNietBetaald*LeningGoed,MaandelijkseBetaling,""), "") ->  | F179: =IFERROR(IF(LeningNietBetaald*LeningGoed,Hoofdsom,""), "") ->  | G179: =IFERROR(IF(LeningNietBetaald*LeningGoed,Rentebedrag,""), "") ->  | H179: =IFERROR(IF(LeningNietBetaald*LeningGoed,Eindsaldo,""), "") -> 
B180: =IFERROR(IF(LeningNietBetaald*LeningGoed,NummerBetaling,""), "") ->  | C180: =IFERROR(IF(LeningNietBetaald*LeningGoed,Betaaldatum,""), "") ->  | D180: =IFERROR(IF(LeningNietBetaald*LeningGoed,WaardeLening,""), "") ->  | E180: =IFERROR(IF(LeningNietBetaald*LeningGoed,MaandelijkseBetaling,""), "") ->  | F180: =IFERROR(IF(LeningNietBetaald*LeningGoed,Hoofdsom,""), "") ->  | G180: =IFERROR(IF(LeningNietBetaald*LeningGoed,Rentebedrag,""), "") ->  | H180: =IFERROR(IF(LeningNietBetaald*LeningGoed,Eindsaldo,""), "") -> 
B181: =IFERROR(IF(LeningNietBetaald*LeningGoed,NummerBetaling,""), "") ->  | C181: =IFERROR(IF(LeningNietBetaald*LeningGoed,Betaaldatum,""), "") ->  | D181: =IFERROR(IF(LeningNietBetaald*LeningGoed,WaardeLening,""), "") ->  | E181: =IFERROR(IF(LeningNietBetaald*LeningGoed,MaandelijkseBetaling,""), "") ->  | F181: =IFERROR(IF(LeningNietBetaald*LeningGoed,Hoofdsom,""), "") ->  | G181: =IFERROR(IF(LeningNietBetaald*LeningGoed,Rentebedrag,""), "") ->  | H181: =IFERROR(IF(LeningNietBetaald*LeningGoed,Eindsaldo,""), "") -> 
B182: =IFERROR(IF(LeningNietBetaald*LeningGoed,NummerBetaling,""), "") ->  | C182: =IFERROR(IF(LeningNietBetaald*LeningGoed,Betaaldatum,""), "") ->  | D182: =IFERROR(IF(LeningNietBetaald*LeningGoed,WaardeLening,""), "") ->  | E182: =IFERROR(IF(LeningNietBetaald*LeningGoed,MaandelijkseBetaling,""), "") ->  | F182: =IFERROR(IF(LeningNietBetaald*LeningGoed,Hoofdsom,""), "") ->  | G182: =IFERROR(IF(LeningNietBetaald*LeningGoed,Rentebedrag,""), "") ->  | H182: =IFERROR(IF(LeningNietBetaald*LeningGoed,Eindsaldo,""), "") -> 
B183: =IFERROR(IF(LeningNietBetaald*LeningGoed,NummerBetaling,""), "") ->  | C183: =IFERROR(IF(LeningNietBetaald*LeningGoed,Betaaldatum,""), "") ->  | D183: =IFERROR(IF(LeningNietBetaald*LeningGoed,WaardeLening,""), "") ->  | E183: =IFERROR(IF(LeningNietBetaald*LeningGoed,MaandelijkseBetaling,""), "") ->  | F183: =IFERROR(IF(LeningNietBetaald*LeningGoed,Hoofdsom,""), "") ->  | G183: =IFERROR(IF(LeningNietBetaald*LeningGoed,Rentebedrag,""), "") ->  | H183: =IFERROR(IF(LeningNietBetaald*LeningGoed,Eindsaldo,""), "") -> 
B184: =IFERROR(IF(LeningNietBetaald*LeningGoed,NummerBetaling,""), "") ->  | C184: =IFERROR(IF(LeningNietBetaald*LeningGoed,Betaaldatum,""), "") ->  | D184: =IFERROR(IF(LeningNietBetaald*LeningGoed,WaardeLening,""), "") ->  | E184: =IFERROR(IF(LeningNietBetaald*LeningGoed,MaandelijkseBetaling,""), "") ->  | F184: =IFERROR(IF(LeningNietBetaald*LeningGoed,Hoofdsom,""), "") ->  | G184: =IFERROR(IF(LeningNietBetaald*LeningGoed,Rentebedrag,""), "") ->  | H184: =IFERROR(IF(LeningNietBetaald*LeningGoed,Eindsaldo,""), "") -> 
B185: =IFERROR(IF(LeningNietBetaald*LeningGoed,NummerBetaling,""), "") ->  | C185: =IFERROR(IF(LeningNietBetaald*LeningGoed,Betaaldatum,""), "") ->  | D185: =IFERROR(IF(LeningNietBetaald*LeningGoed,WaardeLening,""), "") ->  | E185: =IFERROR(IF(LeningNietBetaald*LeningGoed,MaandelijkseBetaling,""), "") ->  | F185: =IFERROR(IF(LeningNietBetaald*LeningGoed,Hoofdsom,""), "") ->  | G185: =IFERROR(IF(LeningNietBetaald*LeningGoed,Rentebedrag,""), "") ->  | H185: =IFERROR(IF(LeningNietBetaald*LeningGoed,Eindsaldo,""), "") -> 
B186: =IFERROR(IF(LeningNietBetaald*LeningGoed,NummerBetaling,""), "") ->  | C186: =IFERROR(IF(LeningNietBetaald*LeningGoed,Betaaldatum,""), "") ->  | D186: =IFERROR(IF(LeningNietBetaald*LeningGoed,WaardeLening,""), "") ->  | E186: =IFERROR(IF(LeningNietBetaald*LeningGoed,MaandelijkseBetaling,""), "") ->  | F186: =IFERROR(IF(LeningNietBetaald*LeningGoed,Hoofdsom,""), "") ->  | G186: =IFERROR(IF(LeningNietBetaald*LeningGoed,Rentebedrag,""), "") ->  | H186: =IFERROR(IF(LeningNietBetaald*LeningGoed,Eindsaldo,""), "") -> 
B187: =IFERROR(IF(LeningNietBetaald*LeningGoed,NummerBetaling,""), "") ->  | C187: =IFERROR(IF(LeningNietBetaald*LeningGoed,Betaaldatum,""), "") ->  | D187: =IFERROR(IF(LeningNietBetaald*LeningGoed,WaardeLening,""), "") ->  | E187: =IFERROR(IF(LeningNietBetaald*LeningGoed,MaandelijkseBetaling,""), "") ->  | F187: =IFERROR(IF(LeningNietBetaald*LeningGoed,Hoofdsom,""), "") ->  | G187: =IFERROR(IF(LeningNietBetaald*LeningGoed,Rentebedrag,""), "") ->  | H187: =IFERROR(IF(LeningNietBetaald*LeningGoed,Eindsaldo,""), "") -> 
B188: =IFERROR(IF(LeningNietBetaald*LeningGoed,NummerBetaling,""), "") ->  | C188: =IFERROR(IF(LeningNietBetaald*LeningGoed,Betaaldatum,""), "") ->  | D188: =IFERROR(IF(LeningNietBetaald*LeningGoed,WaardeLening,""), "") ->  | E188: =IFERROR(IF(LeningNietBetaald*LeningGoed,MaandelijkseBetaling,""), "") ->  | F188: =IFERROR(IF(LeningNietBetaald*LeningGoed,Hoofdsom,""), "") ->  | G188: =IFERROR(IF(LeningNietBetaald*LeningGoed,Rentebedrag,""), "") ->  | H188: =IFERROR(IF(LeningNietBetaald*LeningGoed,Eindsaldo,""), "") -> 
B189: =IFERROR(IF(LeningNietBetaald*LeningGoed,NummerBetaling,""), "") ->  | C189: =IFERROR(IF(LeningNietBetaald*LeningGoed,Betaaldatum,""), "") ->  | D189: =IFERROR(IF(LeningNietBetaald*LeningGoed,WaardeLening,""), "") ->  | E189: =IFERROR(IF(LeningNietBetaald*LeningGoed,MaandelijkseBetaling,""), "") ->  | F189: =IFERROR(IF(LeningNietBetaald*LeningGoed,Hoofdsom,""), "") ->  | G189: =IFERROR(IF(LeningNietBetaald*LeningGoed,Rentebedrag,""), "") ->  | H189: =IFERROR(IF(LeningNietBetaald*LeningGoed,Eindsaldo,""), "") -> 
B190: =IFERROR(IF(LeningNietBetaald*LeningGoed,NummerBetaling,""), "") ->  | C190: =IFERROR(IF(LeningNietBetaald*LeningGoed,Betaaldatum,""), "") ->  | D190: =IFERROR(IF(LeningNietBetaald*LeningGoed,WaardeLening,""), "") ->  | E190: =IFERROR(IF(LeningNietBetaald*LeningGoed,MaandelijkseBetaling,""), "") ->  | F190: =IFERROR(IF(LeningNietBetaald*LeningGoed,Hoofdsom,""), "") ->  | G190: =IFERROR(IF(LeningNietBetaald*LeningGoed,Rentebedrag,""), "") ->  | H190: =IFERROR(IF(LeningNietBetaald*LeningGoed,Eindsaldo,""), "") -> 
B191: =IFERROR(IF(LeningNietBetaald*LeningGoed,NummerBetaling,""), "") ->  | C191: =IFERROR(IF(LeningNietBetaald*LeningGoed,Betaaldatum,""), "") ->  | D191: =IFERROR(IF(LeningNietBetaald*LeningGoed,WaardeLening,""), "") ->  | E191: =IFERROR(IF(LeningNietBetaald*LeningGoed,MaandelijkseBetaling,""), "") ->  | F191: =IFERROR(IF(LeningNietBetaald*LeningGoed,Hoofdsom,""), "") ->  | G191: =IFERROR(IF(LeningNietBetaald*LeningGoed,Rentebedrag,""), "") ->  | H191: =IFERROR(IF(LeningNietBetaald*LeningGoed,Eindsaldo,""), "") -> 
B192: =IFERROR(IF(LeningNietBetaald*LeningGoed,NummerBetaling,""), "") ->  | C192: =IFERROR(IF(LeningNietBetaald*LeningGoed,Betaaldatum,""), "") ->  | D192: =IFERROR(IF(LeningNietBetaald*LeningGoed,WaardeLening,""), "") ->  | E192: =IFERROR(IF(LeningNietBetaald*LeningGoed,MaandelijkseBetaling,""), "") ->  | F192: =IFERROR(IF(LeningNietBetaald*LeningGoed,Hoofdsom,""), "") ->  | G192: =IFERROR(IF(LeningNietBetaald*LeningGoed,Rentebedrag,""), "") ->  | H192: =IFERROR(IF(LeningNietBetaald*LeningGoed,Eindsaldo,""), "") -> 
B193: =IFERROR(IF(LeningNietBetaald*LeningGoed,NummerBetaling,""), "") ->  | C193: =IFERROR(IF(LeningNietBetaald*LeningGoed,Betaaldatum,""), "") ->  | D193: =IFERROR(IF(LeningNietBetaald*LeningGoed,WaardeLening,""), "") ->  | E193: =IFERROR(IF(LeningNietBetaald*LeningGoed,MaandelijkseBetaling,""), "") ->  | F193: =IFERROR(IF(LeningNietBetaald*LeningGoed,Hoofdsom,""), "") ->  | G193: =IFERROR(IF(LeningNietBetaald*LeningGoed,Rentebedrag,""), "") ->  | H193: =IFERROR(IF(LeningNietBetaald*LeningGoed,Eindsaldo,""), "") -> 
B194: =IFERROR(IF(LeningNietBetaald*LeningGoed,NummerBetaling,""), "") ->  | C194: =IFERROR(IF(LeningNietBetaald*LeningGoed,Betaaldatum,""), "") ->  | D194: =IFERROR(IF(LeningNietBetaald*LeningGoed,WaardeLening,""), "") ->  | E194: =IFERROR(IF(LeningNietBetaald*LeningGoed,MaandelijkseBetaling,""), "") ->  | F194: =IFERROR(IF(LeningNietBetaald*LeningGoed,Hoofdsom,""), "") ->  | G194: =IFERROR(IF(LeningNietBetaald*LeningGoed,Rentebedrag,""), "") ->  | H194: =IFERROR(IF(LeningNietBetaald*LeningGoed,Eindsaldo,""), "") -> 
B195: =IFERROR(IF(LeningNietBetaald*LeningGoed,NummerBetaling,""), "") ->  | C195: =IFERROR(IF(LeningNietBetaald*LeningGoed,Betaaldatum,""), "") ->  | D195: =IFERROR(IF(LeningNietBetaald*LeningGoed,WaardeLening,""), "") ->  | E195: =IFERROR(IF(LeningNietBetaald*LeningGoed,MaandelijkseBetaling,""), "") ->  | F195: =IFERROR(IF(LeningNietBetaald*LeningGoed,Hoofdsom,""), "") ->  | G195: =IFERROR(IF(LeningNietBetaald*LeningGoed,Rentebedrag,""), "") ->  | H195: =IFERROR(IF(LeningNietBetaald*LeningGoed,Eindsaldo,""), "") -> 
B196: =IFERROR(IF(LeningNietBetaald*LeningGoed,NummerBetaling,""), "") ->  | C196: =IFERROR(IF(LeningNietBetaald*LeningGoed,Betaaldatum,""), "") ->  | D196: =IFERROR(IF(LeningNietBetaald*LeningGoed,WaardeLening,""), "") ->  | E196: =IFERROR(IF(LeningNietBetaald*LeningGoed,MaandelijkseBetaling,""), "") ->  | F196: =IFERROR(IF(LeningNietBetaald*LeningGoed,Hoofdsom,""), "") ->  | G196: =IFERROR(IF(LeningNietBetaald*LeningGoed,Rentebedrag,""), "") ->  | H196: =IFERROR(IF(LeningNietBetaald*LeningGoed,Eindsaldo,""), "") -> 
B197: =IFERROR(IF(LeningNietBetaald*LeningGoed,NummerBetaling,""), "") ->  | C197: =IFERROR(IF(LeningNietBetaald*LeningGoed,Betaaldatum,""), "") ->  | D197: =IFERROR(IF(LeningNietBetaald*LeningGoed,WaardeLening,""), "") ->  | E197: =IFERROR(IF(LeningNietBetaald*LeningGoed,MaandelijkseBetaling,""), "") ->  | F197: =IFERROR(IF(LeningNietBetaald*LeningGoed,Hoofdsom,""), "") ->  | G197: =IFERROR(IF(LeningNietBetaald*LeningGoed,Rentebedrag,""), "") ->  | H197: =IFERROR(IF(LeningNietBetaald*LeningGoed,Eindsaldo,""), "") -> 
B198: =IFERROR(IF(LeningNietBetaald*LeningGoed,NummerBetaling,""), "") ->  | C198: =IFERROR(IF(LeningNietBetaald*LeningGoed,Betaaldatum,""), "") ->  | D198: =IFERROR(IF(LeningNietBetaald*LeningGoed,WaardeLening,""), "") ->  | E198: =IFERROR(IF(LeningNietBetaald*LeningGoed,MaandelijkseBetaling,""), "") ->  | F198: =IFERROR(IF(LeningNietBetaald*LeningGoed,Hoofdsom,""), "") ->  | G198: =IFERROR(IF(LeningNietBetaald*LeningGoed,Rentebedrag,""), "") ->  | H198: =IFERROR(IF(LeningNietBetaald*LeningGoed,Eindsaldo,""), "") -> 
B199: =IFERROR(IF(LeningNietBetaald*LeningGoed,NummerBetaling,""), "") ->  | C199: =IFERROR(IF(LeningNietBetaald*LeningGoed,Betaaldatum,""), "") ->  | D199: =IFERROR(IF(LeningNietBetaald*LeningGoed,WaardeLening,""), "") ->  | E199: =IFERROR(IF(LeningNietBetaald*LeningGoed,MaandelijkseBetaling,""), "") ->  | F199: =IFERROR(IF(LeningNietBetaald*LeningGoed,Hoofdsom,""), "") ->  | G199: =IFERROR(IF(LeningNietBetaald*LeningGoed,Rentebedrag,""), "") ->  | H199: =IFERROR(IF(LeningNietBetaald*LeningGoed,Eindsaldo,""), "") -> 
B200: =IFERROR(IF(LeningNietBetaald*LeningGoed,NummerBetaling,""), "") ->  | C200: =IFERROR(IF(LeningNietBetaald*LeningGoed,Betaaldatum,""), "") ->  | D200: =IFERROR(IF(LeningNietBetaald*LeningGoed,WaardeLening,""), "") ->  | E200: =IFERROR(IF(LeningNietBetaald*LeningGoed,MaandelijkseBetaling,""), "") ->  | F200: =IFERROR(IF(LeningNietBetaald*LeningGoed,Hoofdsom,""), "") ->  | G200: =IFERROR(IF(LeningNietBetaald*LeningGoed,Rentebedrag,""), "") ->  | H200: =IFERROR(IF(LeningNietBetaald*LeningGoed,Eindsaldo,""), "") -> 
B201: =IFERROR(IF(LeningNietBetaald*LeningGoed,NummerBetaling,""), "") ->  | C201: =IFERROR(IF(LeningNietBetaald*LeningGoed,Betaaldatum,""), "") ->  | D201: =IFERROR(IF(LeningNietBetaald*LeningGoed,WaardeLening,""), "") ->  | E201: =IFERROR(IF(LeningNietBetaald*LeningGoed,MaandelijkseBetaling,""), "") ->  | F201: =IFERROR(IF(LeningNietBetaald*LeningGoed,Hoofdsom,""), "") ->  | G201: =IFERROR(IF(LeningNietBetaald*LeningGoed,Rentebedrag,""), "") ->  | H201: =IFERROR(IF(LeningNietBetaald*LeningGoed,Eindsaldo,""), "") -> 
B202: =IFERROR(IF(LeningNietBetaald*LeningGoed,NummerBetaling,""), "") ->  | C202: =IFERROR(IF(LeningNietBetaald*LeningGoed,Betaaldatum,""), "") ->  | D202: =IFERROR(IF(LeningNietBetaald*LeningGoed,WaardeLening,""), "") ->  | E202: =IFERROR(IF(LeningNietBetaald*LeningGoed,MaandelijkseBetaling,""), "") ->  | F202: =IFERROR(IF(LeningNietBetaald*LeningGoed,Hoofdsom,""), "") ->  | G202: =IFERROR(IF(LeningNietBetaald*LeningGoed,Rentebedrag,""), "") ->  | H202: =IFERROR(IF(LeningNietBetaald*LeningGoed,Eindsaldo,""), "") -> 
... 167 more rows
